Cogmind - Beta 16.1 @@@ ROGUE MODE // 2026.03.01 @ 08:52:31 Player: +Jones Result: Escaped! Performance ------------- Evolutions (9) 4500 Regions Visited (25) 5000 Robots Destroyed (547) 2735 Value Destroyed (32257) 32257 Prototype IDs (110) 2200 Alien Tech Used (1) 200 Bonus (27853) 27853 TOTAL SCORE: 74745 Bonus ------- Triggered High Security 500 High Alert Combat Kills 4800 Follower Combat Kills 1594 Hunted by Unchained 1000 Destroyed Unchained 1000 Network Hubs Disabled 200 Met Data Miner 300 Met Warlord at Base 500 MAIN.C Attacked Warlord 500 Warlord Defense Kills 220 Built Enhanced Grunts 300 A7 Reached Mainframe 300 Met R17 at Cetus 500 Met R17 at Research 2000 Met Warlord at Research 2000 Scanned by Researcher 500 Destroyed MAIN.C Guards 500 Met MAIN.C 5000 Hacked MAIN.C 300 Destroyed MAIN.C Shell 5000 Met Warlord at Command 2000 Win 3000 Friendly Fire -4161 Cogmind --------- Core Integrity 632/1600 Matter 300/300 Energy 11/350 System Corruption 4% Temperature Cool (11) Movement Walking (163) Location To Epsilon Eridani Parts ------- > --- POWER (2) -------- Quantum Reactor > --- PROPULSION (6) --- Centrium-Armored Exoskeleton > --- UTILITY (12) ----- Armored Scrap Engine 2N-1CE's Frost Array Advanced Coolant Injector High-capacity Storage Unit Experimental Targeting Computer Experimental Core Analyzer Centrium Heavy Armor Plating AEGIS Remote Shield Experimental System Purifier Long-range Tractor Beam > --- WEAPON (6) ------- Heavy Quantum Rifle Proton Burst Cannon Hpw. KE Graviton Construct/C > --- INVENTORY (20) --- Advanced Heat Sink Experimental Matter Compressor (500) Long-range Sensor Array Long-range Terrain Scanner Experimental Core Analyzer Advanced Weapon Cycler Advanced Transmission Jammer Centrium Medium Armor Plating Thermal Barrier Mapping Drone Bay (3/3) Fusion Bomb Launcher Point Singularity Launcher Advanced Remote Datajack Thunder Hammer Peak State ------------ > --- POWER ------------ Quantum Reactor Chain-Quantum Reactor > --- PROPULSION ------- Centrium-Armored Exoskeleton > --- UTILITY ---------- Armored Scrap Engine 2N-1CE's Frost Array High-capacity Storage Unit Experimental Targeting Computer Experimental Core Analyzer Experimental Core Analyzer SHELL Armor AEGIS Remote Shield Experimental System Purifier > --- WEAPON ----------- Improved Matter Neutralizer Hypervelocity Multirail Hpw. KE Graviton Construct/C > --- INVENTORY -------- Quantum Reactor Advanced Heat Sink Experimental Energy Well Experimental Matter Compressor Long-range Sensor Array Long-range Terrain Scanner Experimental Core Analyzer Advanced Weapon Cycler Advanced Transmission Jammer Centrium Medium Armor Plating Centrium Heavy Armor Plating Thermal Barrier Long-range Tractor Beam Mapping Drone Bay Heavy Quantum Rifle Fusion Bomb Launcher Point Singularity Launcher Advanced Remote Datajack Thunder Hammer [Rating: 253] Favorites ----------- Power Quantum Reactor Engine Improved Deuterium Engine Power Core Neutrino Core Reactor Quantum Reactor Propulsion Constructs Treads Light Treads Leg Constructs Wheel Armored Huge Wheel Utility High-capacity Storage Unit Device Armored Scrap Engine Storage High-capacity Storage Unit Processor Experimental Targeting Computer Hackware System Mapper Protection SHELL Armor Weapon Constructs Energy Gun Quantum Rifle Energy Cannon Heavy Plasma Cannon Ballistic Gun Heavy Assault Rifle Ballistic Cannon Constructs Launcher Long-range Missile Launcher Special Weapon RU-N14's Throwing Claymores v3 Impact Weapon Thunder Hammer Slashing Weapon Makeshift Axe Piercing Weapon Spear Build | -11 -10 -10 -8 -8 -8 -6 -6 -6 -6 -5 -5 -5 -5 -5 -5 -4 -4 -4 -4 -3 -3 -2 -2 -1 -1 ------- Run | Yrd Mat Sub Mat Sto Rec Fac Low Low Dat Pro Fac Ext Cet Arc Hub Fac Upp Upp War Pro Res Res Tes Acc Com Slots Evolved 18 | . . . 4 . . 4 . . . . 2 . . . . 2 . . . . 2 2 . 2 . Power 1 | . . . . . . . . . . . . . . . . 1 . . . . . . . . . Propulsion 4 | . . . 1 . . 1 . . . . 1 . . . . 1 . . . . . . . . . Utility 10 | . . . 2 . . 1 . . . . 1 . . . . . . . . . 2 2 . 2 . Weapon 3 | . . . 1 . . 2 . . . . . . . . . . . . . . . . . . . Parts Attached 257 | 7 6 14 35 19 3 16 6 . . 1 15 17 3 2 1 13 4 . 7 1 8 16 32 11 20 Power 28 | 1 . 1 6 3 . 2 . . . . . 3 1 . . 1 . . 1 . . 2 4 1 2 Engine 12 | 1 . 1 5 2 . 2 . . . . . . . . . . . . . . . . 1 . . Core 6 | . . . 1 1 . . . . . . . 3 . . . . . . . . . . 1 . . Reactor 10 | . . . . . . . . . . . . . 1 . . 1 . . 1 . . 2 2 1 2 Propulsion 30 | 2 . 5 9 2 2 2 . . . . 3 3 . . . 1 . . . . . 1 . . . Treads 19 | 2 . 5 9 2 . . . . . . . . . . . . . . . . . 1 . . . Leg 1 | . . . . . 1 . . . . . . . . . . . . . . . . . . . . Wheel 10 | . . . . . 1 2 . . . . 3 3 . . . 1 . . . . . . . . . Hover . | . . . . . . . . . . . . . . . . . . . . . . . . . . Flight . | . . . . . . . . . . . . . . . . . . . . . . . . . . Utility 125 | 2 1 4 9 7 1 6 3 . . 1 8 8 1 . 1 10 3 . 3 . 6 10 19 9 13 Device 58 | 1 . 1 2 3 1 2 1 . . . 6 4 . . 1 5 3 . 1 . 4 5 10 2 6 Storage 9 | 1 1 1 . . . 1 . . . . . 1 . . . . . . . . 1 . 3 . . Processor 20 | . . . . . . . 1 . . . . . . . . 3 . . 2 . . 1 3 5 5 Hackware 10 | . . . . 2 . . . . . . 2 . . . . . . . . . 1 3 1 1 . Protection 28 | . . 2 7 2 . 3 1 . . 1 . 3 1 . . 2 . . . . . 1 2 1 2 Artifact . | . . . . . . . . . . . . . . . . . . . . . . . . . . Weapon 74 | 2 5 4 11 7 . 6 3 . . . 4 3 1 2 . 1 1 . 3 1 2 3 9 1 5 Energy Gun 8 | . . . . 2 . . . . . . . 1 1 2 . . . . . . . . 1 . 1 Energy Cannon 11 | . . . . 2 . 2 . . . . 1 . . . . . . . 1 . . . 3 . 2 Ballistic Gun 28 | 2 3 4 9 3 . 1 . . . . . 2 . . . 1 . . . . . 1 1 . 1 Ballistic Cannon 5 | . . . . . . . . . . . . . . . . . 1 . . . 2 1 1 . . Launcher 9 | . 1 . 1 . . 1 1 . . . 1 . . . . . . . . 1 . 1 1 1 . Special Weapon 6 | . 1 . . . . 1 . . . . . . . . . . . . 2 . . . 1 . 1 Impact Weapon 2 | . . . . . . . 1 . . . 1 . . . . . . . . . . . . . . Slashing Weapon 4 | . . . 1 . . 1 1 . . . . . . . . . . . . . . . 1 . . Piercing Weapon 1 | . . . . . . . . . . . 1 . . . . . . . . . . . . . . Special Melee Weapon . | . . . . . . . . . . . . . . . . . . . . . . . . . . Unidentified Prototypes 65 | . . . 2 3 1 1 1 . . . 2 1 1 1 . 1 1 . 6 . 6 6 19 3 10 Parts Lost 28 | . . 3 3 2 . 1 . . . 1 2 2 . . . 1 . . . . . 1 3 1 8 Power 5 | . . 1 . . . . . . . . . 1 . . . . . . . . . 1 . . 2 Propulsion 2 | . . 1 . . . . . . . . 1 . . . . . . . . . . . . . . Utility 12 | . . 1 1 2 . . . . . 1 . 1 . . . 1 . . . . . . 2 1 2 Weapon 9 | . . . 2 . . 1 . . . . 1 . . . . . . . . . . . 1 . 4 Highest Loss Streak 3 | . . 1 1 1 . 1 . . . 1 1 1 . . . 1 . . . . . 1 1 1 3 To Critical Strikes 1 | . . . . . . . . . . . . . . . . . . . . . . . . . 1 Average Backups 17 | 1 11 13 18 19 18 16 17 18 19 19 17 17 18 18 19 18 18 17 17 19 19 19 19 17 16 Power . | . . . . 1 1 1 . . . . . . 1 1 1 . . . . . . . . . 1 Propulsion 1 | . 1 3 4 3 2 . . 1 1 1 . 1 1 1 . . 1 1 . . . . . . . Utility 10 | . 2 2 6 6 6 12 13 14 15 15 11 11 13 13 14 13 13 14 14 16 14 13 15 13 11 Weapon 4 | 1 7 6 6 7 7 2 3 2 3 3 4 4 3 3 3 3 2 2 2 3 5 4 3 2 2 Tool/Special . | . . . . . . . . . . . . . . . . . . . . . . . . . . Unused Backups 83 | . 6 2 13 1 2 13 . 1 . . 3 8 3 3 2 8 1 . 2 . 2 3 2 2 6 Power 5 | . . . 2 . . . . . . . . 1 1 . . . . . . . . 1 . . . Propulsion 22 | . . . 4 . 1 5 . . . . . 5 2 . 1 . . . 1 . . . 1 1 1 Utility 32 | . . 1 3 1 . 5 . 1 . . . 1 . 3 1 7 . . 1 . 1 1 1 . 5 Weapon 22 | . 6 . 4 . 1 3 . . . . 3 1 . . . 1 . . . . 1 1 . 1 . Tool/Special 2 | . . 1 . . . . . . . . . . . . . . 1 . . . . . . . . Average Slot Usage (%) 68 | . 99 87 91 99 77 67 68 65 62 61 59 55 51 54 55 52 51 54 54 55 54 59 56 56 56 Engine 3 | . 14 5 8 6 9 6 6 6 6 6 4 1 . . . . . . . . . . . . . Reactor 3 | . . . . . . . . . . . . . 4 5 5 9 10 10 10 10 8 7 4 6 6 Treads 10 | . 28 27 27 26 15 . . 4 6 6 3 1 5 5 5 4 4 1 5 5 4 5 2 1 2 Wheel 2 | . . . . . 1 6 7 6 6 6 11 6 . . . . . . . . . . . . . Device 12 | . 14 9 8 10 6 6 11 12 12 10 12 12 10 15 16 14 19 20 18 10 12 14 10 7 15 Storage 6 | . 14 10 7 9 9 6 6 6 6 6 5 5 5 5 5 4 5 5 5 5 4 4 4 3 3 Processor 2 | . . . . . . . 5 6 6 6 1 . . . . 4 . . 1 10 9 9 8 10 9 Hackware 3 | . . . . 5 11 6 . . . . 5 5 5 . . . . . . . 3 7 8 7 1 Protection 3 | . . 4 11 10 2 5 . . . 1 . 2 5 5 5 . . . . . . . 2 3 2 Energy Cannon 1 | . . . . . . 8 5 2 6 6 2 . 4 . . 1 4 5 5 5 1 . . 2 . Ballistic Gun 7 | . 24 25 25 23 16 2 . . . . . 1 . . . . . . . . . . . . . Ballistic Cannon 1 | . . . . . . . . 3 . . 3 4 . 5 5 3 . . . . 3 4 3 . 3 Impact Weapon 1 | . . . . . . . . . . . . . . . . . 4 5 5 5 3 3 1 1 2 Slashing Weapon 2 | . . . . 2 2 6 17 15 12 11 1 3 5 5 5 3 . . . . . . . . . Peak Build Rating 253 | 7 11 41 54 40 51 79 86 85 81 85 100 103 127 135 133 151 151 138 151 151 173 208 225 239 253 Average Rating 103 | 5 9 23 34 36 44 65 77 80 81 81 92 87 114 132 126 135 136 133 133 147 161 191 203 232 239 On Entrance 103 | . 7 11 41 35 37 49 79 85 81 81 74 93 103 127 133 124 151 134 128 151 148 173 201 218 237 Avg Prop Armor Cover (%) 11 | . . . . . 9 . 11 12 12 11 9 12 . . . 17 . . . . . . . . . Naked Turns . | . . . . . . . . . . . . . . . . . . . . . . . . . . Heaviest Build 188 | 13 30 97 124 73 61 121 113 126 126 132 124 104 101 98 100 156 156 136 146 133 157 153 175 183 188 Greatest Support 408 | 40 40 80 100 69 69 78 56 28 28 28 70 151 194 179 179 186 181 156 211 211 211 384 384 408 408 Greatest Overweight (x) 7 | 1 . 2 1 1 3 2 2 4 4 4 4 6 . . . 7 1 1 . . . . . . . Average Overweight (x) . | . . . . . . . 1 3 4 4 2 . . . . . . . . . . . . . . Largest Inventory Capacity 25 | 8 15 20 20 20 20 25 25 25 25 25 25 20 20 20 20 20 20 20 20 20 20 20 20 20 20 Average Capacity 19 | 7 13 17 19 20 20 20 20 23 25 25 20 20 20 20 20 19 20 20 20 20 20 20 20 20 20 Most Carried 25 | 4 15 15 20 20 20 22 22 25 25 25 21 20 20 20 20 20 20 19 20 20 20 20 20 20 20 Average Carried 18 | 1 11 13 18 19 18 18 19 23 25 24 18 18 19 19 19 19 19 18 18 19 19 19 19 18 18 Final Capacity 25 | 8 15 20 20 20 20 25 20 25 25 25 20 20 20 20 20 20 20 20 20 20 20 20 20 20 20 Final Carried 25 | 4 15 15 20 19 18 22 20 25 25 22 18 20 20 20 20 20 19 18 19 20 20 20 19 20 14 Scrap Engine Consumption 319 | . . . . . 33 22 23 9 . 5 9 61 12 6 9 15 14 6 4 1 11 26 26 12 15 Constructs Created 8 | . . . . . 2 . 1 . . . 1 . . . . 2 . . . . . 2 . . . Constructs Modified 134 | . . . . . 11 9 9 4 . 2 4 25 5 2 1 9 8 3 1 . 3 11 13 7 7 Class Distribution -------------------- 33% | Construct 14% | Hacker-Construct 14% | Mutant 7% | Tank 5% | Scavenger-Tank 5% | Commander-Construct 4% | Scavenger-Construct 3% | Gunner Dominant Class ---------------- Mutant | -10/Materials Mutant | -10/Subcaves Scavenger-Tank | -8/Materials Tank | -8/Storage Construct | -8/Recycling Tank | -6/Factory Mutant | -6/Lower Caves Skirmisher | -6/Lower Caves Construct | -6/Data Miner Construct | -5/Proximity Caves Executioner | -5/Factory Construct | -5/Extension Construct | -5/Cetus Commander-Construct | -5/Archives Commander-Construct | -5/Hub_04(d) Construct | -4/Factory Construct | -4/Upper Caves Construct | -4/Upper Caves Construct | -4/Warlord Construct | -3/Proximity Caves Hacker-Construct | -3/Research Hacker-Construct | -2/Research Hacker-Construct | -2/Testing Hacker-Construct | -1/Access Construct | -1/Command Resources | -11 -10 -10 -8 -8 -8 -6 -6 -6 -6 -5 -5 -5 -5 -5 -5 -4 -4 -4 -4 -3 -3 -2 -2 -1 -1 ----------- Run | Yrd Mat Sub Mat Sto Rec Fac Low Low Dat Pro Fac Ext Cet Arc Hub Fac Upp Upp War Pro Res Res Tes Acc Com Matter Collected 22715 | 312 251 930 1804 2286 401 439 237 30 . 90 556 2820 293 45 140 1069 744 111 206 31 732 788 2563 2190 3647 Remotely 1967 | . . . . . . . . . . . . . . . . 324 . . . . . . . 615 1028 Salvage Created 25185 | 187 309 778 1938 1865 806 492 645 544 . 523 828 3451 425 395 242 924 741 225 53 81 707 829 2034 1823 4340 Parts 1021 | 13 23 51 121 115 28 22 18 17 . 18 55 129 22 29 15 34 38 17 3 1 14 18 60 52 108 Haulers Intercepted 17 | . 1 . 6 2 1 1 . . . . . 2 . . . 1 . . . . 1 2 . . . Recyclers Shooed 6 | . 2 . . . . 1 . . . . 2 . . . . . . . . . . . . 1 . Parts Field Recycled . | . . . . . . . . . . . . . . . . . . . . . . . . . . Retrieved Matter . | . . . . . . . . . . . . . . . . . . . . . . . . . . Parts Self-Destructed 70 | . . 13 . . . . 1 2 . 12 . . . . . . 32 9 . 1 . . . . . Prevented 2 | . . . . . . . . . . 1 . . . . . . 1 . . . . . . . . Parts Restored . | . . . . . . . . . . . . . . . . . . . . . . . . . . Kills | -11 -10 -10 -8 -8 -8 -6 -6 -6 -6 -5 -5 -5 -5 -5 -5 -4 -4 -4 -4 -3 -3 -2 -2 -1 -1 ------- Run | Yrd Mat Sub Mat Sto Rec Fac Low Low Dat Pro Fac Ext Cet Arc Hub Fac Upp Upp War Pro Res Res Tes Acc Com Combat Hostiles Destroyed 395 | . 7 16 33 31 11 8 2 . . 8 19 45 5 2 1 15 23 7 1 1 6 10 53 36 55 Melee 17 | . . . . . 6 4 . . . 6 1 . . . . . . . . . . . . . . Guns 87 | . 7 16 25 31 5 1 . . . . . 1 . . . . . . . . . . . . 1 Cannons 216 | . . . . . . 2 . . . 2 3 20 5 2 1 10 13 3 1 1 6 9 53 32 53 AOE 72 | . . . 8 . . 1 2 . . . 14 24 . . . 5 10 4 . . . . . 4 . Classes Destroyed 29 | 3 5 2 4 2 . 1 1 1 . . . 2 . . . . . . 1 . . 1 5 . 1 Worker 22 | 1 1 . 2 1 . 1 . . . . 7 3 . . 1 1 . . . . 2 . 1 . 1 Builder 17 | . . . 3 2 . . . . . . 5 3 . . . 2 . . . . . . 1 1 . Tunneler 5 | 4 . . 1 . . . . . . . . . . . . . . . . . . . . . . Hauler 17 | . 1 . 6 2 1 1 . . . . . 2 . . . 1 . . . . 1 2 . . . Recycler 23 | 1 . . 3 1 . . . . . . 1 8 . . . 3 . . . . 1 . 1 4 . Minesweeper 1 | . . . . . . . . 1 . . . . . . . . . . . . . . . . . Mechanic 1 | . . . . . . . . . . . . 1 . . . . . . . . . . . . . Operator 15 | . 1 . 2 2 . . . . . . . . . 7 1 . . . . . 1 . 1 . . Watcher 28 | . 3 . 5 2 . . . . . . . 2 2 . 1 1 . . . . 2 . 1 6 3 Swarmer 73 | . 5 3 10 . 3 1 . . . 2 8 13 . . . 4 12 4 . . . . . 7 1 Grunt 118 | . 2 2 12 17 2 2 2 . . 4 6 14 . . . 3 5 1 . . 2 3 13 13 15 Brawler 8 | . . . 1 . . . . . . . . 3 . . . 1 . . . . . . . . 3 Duelist 7 | . . . 1 1 . . . . . . . 3 . . . . 1 . . . . . . . 1 Protector 4 | . . . . 1 . . . . . . 1 . . . . . . . . . . . . . 2 Researcher 5 | . . . . . . . . . . . . . . . . . . . . . . . 5 . . Sentry 50 | . . 1 7 10 3 1 . . . 1 1 6 . 2 1 3 2 . . 1 3 1 3 1 3 Specialist 3 | . . . 2 . . . . . . . . . . . . . . . . . . . . . 1 Hunter 28 | . . . . 2 . . . . . 1 1 3 . . . . 2 . . . . 1 7 10 1 Programmer 44 | . . . . . . 4 . . . . 2 1 . . . 4 . 2 . . . 2 20 5 4 Behemoth 5 | . . . . . . . . . . . . 2 . . . . . . . . 1 1 . . 1 Cetus Guard 5 | . . . . . . . . . . . . . 5 . . . . . . . . . . . . S7 Guard 1 | . . . . . . . . . . . . . . . . . . . . . . . 1 . . M Guard 2 | . . . . . . . . . . . . . . . . . . . . . . . . . 2 Enhanced Grunt 1 | . . . . . . . . . . . . . . . 1 . . . . . . . . . . Enhanced Q-Series 19 | . . . . . . . . . . . . . . . . . . . . . . . . . 19 CL-0N3 Special 2 | . . . . . . . . . . . . . . . . . . . . . . . 2 . . Combat Programmer 3 | . . . . . . . . . . . . . . . . . . . . . . . 1 . 2 Striker 1 | . . . . . . . . . . . . . . . . . . . 1 . . . . . . Executioner 3 | . . . . . . . . . . . . . . . . . . . . . . 2 . . 1 Alpha 7 1 | . . . . . . . . . . . . . . . . . . . . . . . 1 . . Protovariant P 1 | . . . . . . . . . . . . . . . . . . . . . . . 1 . . Subdweller 13 | . . 10 . . 3 . . . . . . . . . . . . . . . . . . . . Decomposer 10 | . . . . . . . . 7 . 3 . . . . . . . . . . . . . . . Surgeon 1 | . . . . . . . . . . . . . . . . . . . . . . . 1 . . Thug 5 | . . . . . . . 2 3 . . . . . . . . . . . . . . . . . Savage 3 | . . . . . . . 2 1 . . . . . . . . . . . . . . . . . Guerrilla 2 | . . . . . . . 1 . . . . . . . 1 . . . . . . . . . . Fireman 2 | . . . . . . . . . . . . . . . . . . . . . . . 2 . . Mutant 4 | . . . . . . . 1 1 . . . . . . . . 1 1 . . . . . . . Commander 1 | . . . . . . . 1 . . . . . . . . . . . . . . . . . . Hydra 1 | . . . . . . . . . . . . . . . . . . . . . . . 1 . . Best Kill Streak 15 | 4 4 2 6 10 6 2 2 1 . 3 8 15 5 3 2 12 5 4 1 1 3 2 11 13 9 Combat Bots Only 12 | . 3 2 5 8 5 2 2 . . 3 7 12 4 2 1 8 5 4 1 1 2 2 10 11 8 Max Kills in Single Turn 7 | 2 1 1 3 2 1 1 1 1 . 1 7 4 1 1 2 3 4 2 1 1 1 1 1 3 2 Gunslinging 1 | . . . 1 1 . . . . . . . . . . . . . . . . . . . . . Exploded 4 | . . . 3 . . 1 1 . . . 4 3 . . . 2 4 2 . . . . . 2 . Melee 1 | . . . . . 1 1 . . . 1 1 . . . . . . . . . . . . . . Uniques/NPCs Destroyed 2 | . . . . . . . . . . . . . . . . . . . . . . . 1 . 1 CL-0N3 (-2/Testing) MAIN.C Shell (-1/Command) Combat | -11 -10 -10 -8 -8 -8 -6 -6 -6 -6 -5 -5 -5 -5 -5 -5 -4 -4 -4 -4 -3 -3 -2 -2 -1 -1 -------- Run | Yrd Mat Sub Mat Sto Rec Fac Low Low Dat Pro Fac Ext Cet Arc Hub Fac Upp Upp War Pro Res Res Tes Acc Com Hostile Shots Fired 1826 | . 35 81 120 91 13 69 4 . . 64 81 109 12 3 6 62 48 8 7 . 29 83 240 140 521 Missed 511 | . 8 24 33 18 5 19 1 . . 10 18 23 7 1 . 16 15 1 2 . 11 25 50 46 178 Hits 1315 | . 27 57 87 73 8 50 3 . . 54 63 86 5 2 6 46 33 7 5 . 18 58 190 94 343 Melee 3 | . . . . 2 . . . . . . . 1 . . . . . . . . . . . . . Projectile 1312 | . 27 57 87 71 8 50 3 . . 54 63 85 5 2 6 46 33 7 5 . 18 58 190 94 343 AOE 11 | . . 1 . . . . . . . . . 2 . . . . . . . . . . . . 8 Critical Strikes 76 | . 1 . 4 7 . 3 . . . 3 5 9 2 . . 1 . . 1 . 2 4 16 . 18 Part Disruptions 2 | . . . . . . . . . . . . . . . . . . . . . . . . . 2 Damage Taken 29194 | . 234 864 1222 1269 168 769 58 . . 1038 1425 1652 81 54 311 1128 579 122 137 . 505 1415 5085 1934 9144 Core 2409 | . 45 114 69 143 19 159 . . . 102 86 195 . . 23 85 53 . 26 . 98 73 151 31 937 Absorbed by Shields 4299 | . . . 27 230 . 8 . . . . 219 284 79 . . . 3 . 26 . . . . 61 3362 Reduced by Siege Mode 652 | . . . . . . . . . . . . . . . . . 4 . . . . . 641 . 7 Ignored by Resistances 152 | . . . 62 90 . . . . . . . . . . . . . . . . . . . . . Regen/Repaired (Parts) 14187 | . . . . 560 . 265 76 . . 613 792 1372 98 27 55 798 894 13 49 . 184 1013 3104 1951 2323 Core Remaining (%) 70 | 100 . 36 . . 58 . . . . 69 . . . . 69 . . . . 85 92 . 84 . 39 Volleys Fired 1258 | 7 63 112 103 108 14 32 7 3 . 6 62 98 20 5 14 54 59 22 13 7 24 32 145 96 152 Largest 5 | 2 2 4 5 3 3 3 1 1 . 2 1 3 1 1 1 2 2 1 1 1 1 1 1 2 3 Hottest 516 | 40 100 102 117 75 75 286 226 516 . 516 249 221 83 83 82 125 185 142 142 142 272 294 177 191 268 Shots Fired 1946 | 14 110 168 339 298 42 46 7 3 . 7 62 125 20 5 14 59 60 22 13 7 24 32 145 98 226 Gun 1014 | 14 95 147 328 289 42 7 . . . . . 33 . . . 4 . . . . . . . . 55 Cannon 816 | . . . . 9 . 34 3 3 . 6 53 76 20 5 14 46 53 16 13 7 24 32 140 92 170 Launcher 75 | . 1 1 11 . . 4 4 . . 1 9 16 . . . 9 7 6 . . . . . 6 . Special 41 | . 14 20 . . . 1 . . . . . . . . . . . . . . . . 5 . 1 Kinetic 1525 | 14 95 147 328 289 42 7 . 1 . 4 35 101 . 5 14 48 8 . . . 23 32 140 7 185 Thermal 337 | . 14 20 . 9 . 35 3 2 . 2 18 8 20 . . 2 45 16 13 7 1 . . 85 37 Explosive 80 | . 1 1 11 . . 4 4 . . 1 9 16 . . . 9 7 6 . . . . 5 6 . Electromagnetic 3 | . . . . . . . . . . . . . . . . . . . . . . . . . 3 Robot Hit Streak 28 | 10 11 24 13 13 15 5 2 3 . 5 9 12 11 10 5 7 12 3 5 . 14 10 20 19 28 Robot Miss Streak 5 | . 4 5 4 4 2 3 2 . . 2 3 5 2 1 2 2 2 1 2 . 1 4 3 2 3 Penetration Max 1 | . . . . . . . . . . . . 1 . . 1 . . . . . . . . . 1 Secondary Targets 11 | . 1 2 4 4 . . . . . . . . . . . . . . . . . . . . . Max Gunslinging Chain 1 | . 1 1 1 1 . . . . . . . . . . . . . . . . . . . . . Shots Hit Robots 1315 | 10 55 74 203 191 56 36 21 18 . 21 21 102 13 19 6 31 19 5 5 . 20 19 109 62 199 Core Hits 698 | 7 20 30 97 77 18 13 9 11 . 17 35 83 6 9 11 24 24 7 1 1 6 9 56 37 90 Critical Kills 8 | . . 1 1 2 . . . . . . . 1 . . 1 . . . . . . . . . 2 Critical Parts Destroyed 44 | . . 1 6 3 . . . . . . . 2 . . 1 1 . . . . 2 . . . 28 Critical Strikes 96 | . . 3 7 6 3 2 1 1 . 4 2 10 . 1 2 1 1 . . . 3 1 9 . 39 Meltdown 1 | . . . . . . . . . . . . 1 . . . . . . . . . . . . . Destroy 59 | . . 3 7 5 3 . . . . . . 2 . . 2 . . . . . . . . . 37 Blast 17 | . . . . . . . . . . . 2 5 . . . . 1 . . . 1 1 7 . . Smash 5 | . . . . . . . . . . . . . . . . 1 . . . . 2 . . . 2 Sever 14 | . . . . 1 . 2 1 1 . 4 . 2 . 1 . . . . . . . . 2 . . Melee Attacks 290 | . . . 5 33 23 44 26 26 . 24 15 17 . 15 3 16 4 5 4 . 10 7 4 1 8 Impact 45 | . . . . . . . . . . . . . . . . 6 4 5 4 . 10 7 . 1 8 Slashing 245 | . . . 5 33 23 44 26 26 . 24 15 17 . 15 3 10 . . . . . . 4 . . Piercing . | . . . . . . . . . . . . . . . . . . . . . . . . . . Sneak Attacks 73 | . . . . 4 8 3 16 16 . 3 5 6 . 9 . 1 . . . . 1 1 . . . Combat Hostiles . | . . . . . . . . . . . . . . . . . . . . . . . . . . Follow-up Attacks 14 | . . . . . . . 6 2 . 6 . . . . . . . . . . . . . . . Damage Inflicted 131972 | 132 709 1266 4143 3665 2199 1702 1691 1426 . 1399 4235 13201 1635 1589 1491 4821 4044 1439 1104 360 3163 4062 21362 15186 35948 Guns 10783 | 132 709 1247 3233 3286 596 84 . . . . . 394 . . . 29 . . . . . . . . 1073 Cannons 96619 | . . . . . . 570 . 90 . 439 1611 7935 1635 473 815 3292 2948 1021 1104 360 2707 3931 19618 14004 34066 Explosions 13920 | . . 19 910 . . 204 293 . . 107 2201 4101 . . 632 1375 1096 418 . . . . 1382 1182 . Melee 10185 | . . . . 379 1603 842 1398 1336 . 853 423 771 . 1116 . 125 . . . . 340 131 59 . 809 Ramming 179 | . . . . . . 2 . . . . . . . . 44 . . . . . 116 . 17 . . Kinetic 85114 | 132 709 1247 3233 3286 596 84 . 90 . 141 1611 8072 . 473 815 3144 1136 . . . 2707 3931 19618 . 34089 Thermal 22847 | . . . . . . 570 . . . 298 528 257 1635 . 112 177 1812 1021 1104 360 . . . 14004 969 Explosive 12739 | . . 19 910 . . 204 293 . . 107 1652 4101 . . . 1375 1096 418 . . . . 1382 1182 . Electromagnetic 622 | . . . . . . . . . . . 21 . . . 520 . . . . . . . . . 81 Impact 1405 | . . . . . . . . . . . . . . . . 125 . . . . 340 131 . . 809 Slashing 9066 | . . . . 379 1603 842 1398 1336 . 853 423 771 . 1116 . . . . . . . . 345 . . Piercing . | . . . . . . . . . . . . . . . . . . . . . . . . . . Highest Corruption 6 | . . . 1 1 1 1 . . . . 4 4 . . 1 . . . . . . 1 6 . 4 Average Corruption 1 | . . . 1 1 1 1 . . . . 1 2 . . 1 . . . . . . 1 3 . 2 Corruption Purged 12 | . . . . . . 1 . . . . . 4 . . . . . . . . . 1 6 . . Corruption Blocked 19 | . . . . . . . . . . . . . . . . 4 . . . . . . 9 1 5 Effects 76 | . . . 9 18 17 1 . . . . 7 . . . . . . . . . . . 17 . 7 Message Errors 18 | . . . . 4 6 . . . . . 1 . . . . . . . . . . . 4 . 3 Matter Fused 23 | . . . 2 7 4 . . . . . 2 . . . . . . . . . . . 8 . . Heat Flow Errors 10 | . . . 2 2 2 . . . . . . . . . . . . . . . . . 3 . 1 Energy Discharges 7 | . . . 2 1 1 . . . . . 1 . . . . . . . . . . . 2 . . Parts Rejected 1 | . . . . . . . . . . . 1 . . . . . . . . . . . . . . Parts Fused 1 | . . . 1 . . . . . . . . . . . . . . . . . . . . . . Data Loss (minor) 4 | . . . . 1 2 . . . . . . . . . . . . . . . . . . . 1 Data Loss (major) 3 | . . . . 1 . . . . . . 2 . . . . . . . . . . . . . . Misfires 3 | . . . 1 1 . 1 . . . . . . . . . . . . . . . . . . . Alerts 4 | . . . 1 1 2 . . . . . . . . . . . . . . . . . . . . Weapon Failures 2 | . . . . . . . . . . . . . . . . . . . . . . . . . 2 Overload Shots . | . . . . . . . . . . . . . . . . . . . . . . . . . . Overflow Damage 26457 | . . . 14 103 320 214 176 227 . 183 885 1388 120 309 202 1431 971 386 437 . 731 583 5360 5367 7050 Projectiles 23776 | . . . . . . 97 . . . 105 698 1192 120 . 155 1230 859 373 437 . 424 522 5346 5362 6856 Explosions 515 | . . . 14 . . . 5 . . . 103 130 . . 43 76 112 13 . . . . 14 5 . Melee 2166 | . . . . 103 320 117 171 227 . 78 84 66 . 309 4 125 . . . . 307 61 . . 194 Knockbacks 100 | . . . . . . . . . . . 5 10 . . 3 4 2 . . . 1 8 25 . 42 Impact 4 | . . . . . . . . . . . . . . . 1 1 . . . . 1 . . . 1 Kinetic 89 | . . . . . . . . . . . 4 9 . . 2 3 2 . . . . 6 23 . 40 Secondary 7 | . . . . . . . . . . . 1 1 . . . . . . . . . 2 2 . 1 Self-Inflicted Damage 423 | . . . 44 . . 36 . . . . 119 33 . . 171 . . 20 . . . . . . . Shots 10 | . . . 1 . . 1 . . . . 3 2 . . 2 . . 1 . . . . . . . Rammed 3 | . . . . . . . . . . . . . . . 1 . . . . . 2 . . . . Targets Rammed 6 | . . . . . . 1 . . . . . . . . 1 . . . . . 3 . 1 . . Kicked 2 | . . . . . . 1 . . . . . . . . . . . . . . . . 1 . . Crushed 1 | . . . . . . . . . . . . . . . . . . . . . 1 . . . . Highest Temperature 488 | . 40 . 262 391 245 462 287 486 . 488 456 298 78 36 70 306 323 238 334 271 280 465 390 344 363 Average Temperature 103 | . 15 . 70 89 70 145 144 171 . 170 151 102 39 36 37 93 104 96 148 127 115 130 121 71 105 Received Heat Transfer 3780 | . 30 96 513 444 39 94 27 . . 243 387 174 4 9 27 235 116 . 45 . 103 153 342 27 672 Effects 37 | . . . . 2 . 1 . 1 . 4 11 1 . . . 1 . . 3 . 2 5 5 1 . Shutdowns 1 | . . . . . . . . . . . 1 . . . . . . . . . . . . . . Energy Bleed 5 | . . . . 1 . . . . . 1 2 . . . . . . . . . . . . 1 . Interference 15 | . . . . . . . . . . . 3 1 . . . 1 . . 3 . 2 . 5 . . Short Circuit 3 | . . . . 1 . . . . . . 1 . . . . . . . . . . 1 . . . Damage (minor) 2 | . . . . . . 1 . 1 . . . . . . . . . . . . . . . . . Damage (major) 11 | . . . . . . . . . . 3 4 . . . . . . . . . . 4 . . . Siege Activations 22 | . . . . . . . . . . . . . 1 . . 4 2 . . . . . 11 . 4 Total Turns 200 | . . . . . . . . . . . . . 11 . . 27 11 . . . . . 129 . 22 Longest Duration 31 | . . . . . . . . . . . . . 11 . . 17 8 . . . . . 31 . 11 Martial Activations . | . . . . . . . . . . . . . . . . . . . . . . . . . . Shielding Activations . | . . . . . . . . . . . . . . . . . . . . . . . . . . Robots Disrupted . | . . . . . . . . . . . . . . . . . . . . . . . . . . Combat Hostiles . | . . . . . . . . . . . . . . . . . . . . . . . . . . Robots Corrupted 7 | . . . . . . . . . . . 1 . . . . . . . . . 3 2 . . 1 Combat Hostiles 3 | . . . . . . . . . . . 1 . . . . . . . . . . 1 . . 1 Parts Fried 15 | . . . . . . . . . . . . . . . 1 . . . . . 5 4 . . 5 Impact Corruptions 18 | . . . . . . . . . . . 2 1 . . 1 1 . . . . 6 3 . . 4 Robots Melted 1 | . . . . . . . . . . . . 1 . . . . . . . . . . . . . Combat Hostiles . | . . . . . . . . . . . . . . . . . . . . . . . . . . Parts Melted 7 | . . . . . 1 1 . . . . . 3 . . . . 1 . . . . . . . 1 Heat Transferred 6149 | . . . . . . 600 . . . 100 350 387 592 . 50 37 370 185 222 74 . . . 2257 925 Parts Sabotaged . | . . . . . . . . . . . . . . . . . . . . . . . . . . Parts Stolen . | . . . . . . . . . . . . . . . . . . . . . . . . . . Parts Stripped . | . . . . . . . . . . . . . . . . . . . . . . . . . . Power Chain Reactions 2 | . . . . . . . . . . . 1 . . . 1 . . . . . . . . . . Alert | -11 -10 -10 -8 -8 -8 -6 -6 -6 -6 -5 -5 -5 -5 -5 -5 -4 -4 -4 -4 -3 -3 -2 -2 -1 -1 ------- Run | Yrd Mat Sub Mat Sto Rec Fac Low Low Dat Pro Fac Ext Cet Arc Hub Fac Upp Upp War Pro Res Res Tes Acc Com Maximum Alert Level 5 | . . . 2 2 . . . . . . 2 5 4 2 3 2 . . . . . . 3 4 4 Low Security (%) 54 | 100 100 . 62 13 100 100 . . . . 29 56 . 36 50 57 . . . . 100 100 37 . 25 Level 1 20 | . . . 23 85 . . . . . . 17 27 . 32 33 19 . . . . . . 24 25 . Level 2 13 | . . . 13 . . . . . . . 52 9 . 31 8 22 . . . . . . 21 43 9 Level 3 7 | . . . . . . . . . . . . 1 . . 7 . . . . . . . 16 7 59 Level 4 3 | . . . . . . . . . . . . 3 100 . . . . . . . . . . 22 4 Level 5 . | . . . . . . . . . . . . . . . . . . . . . . . . . . High Security . | . . . . . . . . . . . . 1 . . . . . . . . . . . . . Max Security . | . . . . . . . . . . . . . . . . . . . . . . . . . . Peak Influence 2056 | 15 62 . 467 400 145 145 . . . . 627 2056 1252 637 945 553 . . . . 146 124 762 1220 1196 Initial 1151 | . 3 . . 193 108 137 . . . . 12 284 1151 452 26 432 . . . . . 26 . 432 780 Average 276 | 3 8 . 169 292 37 52 . . . . 335 251 1184 300 243 188 . . . . 60 23 360 686 766 Influence Increases 15634 | 30 289 205 1192 954 283 551 50 10 . 195 939 2569 241 255 1093 989 525 175 35 35 353 401 1703 1332 1230 Destroy 0b10 Robot/C 7920 | . 140 120 660 620 160 180 40 . . 160 360 1260 160 80 260 300 440 140 20 20 120 200 1080 720 680 Destroy 0b10 Robot/NC 720 | 30 30 . 110 55 35 10 10 10 . . 70 105 10 35 15 40 . . . . 35 10 25 55 30 Destroy Leader 1322 | . 28 10 172 178 . 62 . . . 20 60 146 . . 52 74 40 20 . . 46 44 152 122 96 Allied During Kill 1144 | . . . . 2 . 8 . . . . . 619 44 115 312 . . 15 . . . . 29 . . Trap Triggered on 0b10 10 | . . . 10 . . . . . . . . . . . . . . . . . . . . . . Successful Hack 446 | . 27 . 29 8 26 2 . . . . 9 . . . 25 139 . . . . 49 18 71 30 13 Select Force Hacks 60 | . . . . . 60 . . . . . . . . . . . . . . . . . . . . Disable Machine 1110 | . 45 . 75 60 . 120 . . . . 150 45 15 15 135 180 . . . . . 15 180 30 45 Anti-Garrison Action 50 | . . . . . . . . . . . . . . . . . . . . . . . . . 50 Destroy Structure 2257 | . 19 . 76 31 2 69 . . . . 260 334 12 10 294 256 . . . . 28 54 151 375 286 Advance Influence 100 | . . . . . . 100 . . . . . . . . . . . . . . . . . . . Partial Spotted 15 | . . . 15 . . . . . . . . . . . . . . . . . . . . . . Lose Combat Pursuer 480 | . . 75 45 . . . . . . 15 30 60 . . . . 45 . 15 15 75 60 15 . 30 Influence Decreases 14438 | 25 294 205 734 1135 471 537 153 10 . 174 378 1095 1167 1308 287 1324 868 294 118 38 306 448 982 833 1254 Entered New Map 4002 | . 2 . . 265 169 52 39 . . . 9 298 905 678 51 451 204 40 86 3 . 21 . 289 440 Time Decay 8972 | 25 292 175 704 660 302 457 114 10 . 164 349 685 222 630 156 553 644 230 32 35 306 417 622 534 654 Lost Part 192 | . . 30 30 20 . . . . . 10 20 12 . . . 10 . . . . . 10 30 10 10 Lost Ally 362 | . . . . 40 . 28 . . . . . 100 40 . 80 10 20 24 . . . . 20 . . Purge Threat 910 | . . . . 150 . . . . . . . . . . . 300 . . . . . . 310 . 150 Squads Dispatched 78 | . . . 6 5 . 5 . . . 1 8 7 . . 4 4 . . . . 2 3 13 5 15 Investigation 8 | . . . 1 . . . . . . . . . . . 2 . . . . . 2 2 . . 1 Extermination 25 | . . . . . . 3 . . . . 2 . . . . 3 . . . . . . 8 3 6 Reinforcement 23 | . . . 1 3 . 2 . . . . 1 2 . . 2 1 . . . . . 1 5 1 4 Assault 16 | . . . 1 2 . . . . . 1 2 5 . . . . . . . . . . . 1 4 Garrison 6 | . . . 3 . . . . . . . 3 . . . . . . . . . . . . . . Intercept . | . . . . . . . . . . . . . . . . . . . . . . . . . . Searches Triggered . | . . . . . . . . . . . . . . . . . . . . . . . . . . Unchained Authorized 1 | . . . . . . . . . . . . . . . . . . . . . . . 1 . . Data Miner Redirects 1 | . . . . . . . . . . . 1 . . . . . . . . . . . . . . Construction Impeded 5 | . . . . 1 . 1 . . . . 1 2 . . . . . . . . . . . . . Haulers Reinforced 2 | . . . . . . 1 . . . . . . . . . . . . . . . 1 . . . Active Scanning Responses . | . . . . . . . . . . . . . . . . . . . . . . . . . . Cargo Convoy Interrupts 1 | . . . . . . 1 . . . . . . . . . . . . . . . . . . . Stealth | -11 -10 -10 -8 -8 -8 -6 -6 -6 -6 -5 -5 -5 -5 -5 -5 -4 -4 -4 -4 -3 -3 -2 -2 -1 -1 --------- Run | Yrd Mat Sub Mat Sto Rec Fac Low Low Dat Pro Fac Ext Cet Arc Hub Fac Upp Upp War Pro Res Res Tes Acc Com Distress Signals 46 | . 1 . 3 3 1 . . . . . 1 2 2 . 1 1 . . . . 5 8 1 3 14 Communications Jammed . | . . . . . . . . . . . . . . . . . . . . . . . . . . Distress Signals . | . . . . . . . . . . . . . . . . . . . . . . . . . . Times Spotted 607 | . 15 18 44 43 4 14 2 . . 22 20 63 9 12 12 22 20 7 23 . 16 15 69 46 111 Peak Tracking Total 11 | . 3 4 4 9 1 2 2 . . 10 6 11 5 1 6 6 5 4 11 1 4 7 7 6 11 Tactical Retreats 22 | . . 3 3 . . . . . . 1 1 4 . . . . 1 . 1 1 2 1 1 . 3 Traps | -11 -10 -10 -8 -8 -8 -6 -6 -6 -6 -5 -5 -5 -5 -5 -5 -4 -4 -4 -4 -3 -3 -2 -2 -1 -1 ------- Run | Yrd Mat Sub Mat Sto Rec Fac Low Low Dat Pro Fac Ext Cet Arc Hub Fac Upp Upp War Pro Res Res Tes Acc Com Traps Triggered 11 | . . 2 1 . . . . . . . 1 . . . 2 . . . . . . . 1 . 4 Indirectly 1 | . . . . . . . . . . . . . . . 1 . . . . . . . . . . Trap Hack Attempts . | . . . . . . . . . . . . . . . . . . . . . . . . . . Triggered . | . . . . . . . . . . . . . . . . . . . . . . . . . . Disarmed . | . . . . . . . . . . . . . . . . . . . . . . . . . . Reprogrammed . | . . . . . . . . . . . . . . . . . . . . . . . . . . Reused 2 | . . . 1 . . . . . . 1 . . . . . . . . . . . . . . . Traps Extracted . | . . . . . . . . . . . . . . . . . . . . . . . . . . Installed 4 | . . . 1 . . . . . . 3 . . . . . . . . . . . . . . . Triggered 2 | . . . 1 . . . . . . 1 . . . . . . . . . . . . . . . Most Traps Carried 5 | . . 1 1 . . . . 5 4 4 . . . . . . . . . . . . . . . Machines | -11 -10 -10 -8 -8 -8 -6 -6 -6 -6 -5 -5 -5 -5 -5 -5 -4 -4 -4 -4 -3 -3 -2 -2 -1 -1 ---------- Run | Yrd Mat Sub Mat Sto Rec Fac Low Low Dat Pro Fac Ext Cet Arc Hub Fac Upp Upp War Pro Res Res Tes Acc Com Machines Disabled 89 | . 4 1 5 4 . 8 1 . . 1 10 8 1 1 9 12 2 1 . . . 1 13 2 5 Max in Single Turn 7 | . 1 1 1 1 . 2 1 . . 1 6 1 1 . 7 5 1 1 . . . 1 1 1 2 Garrison Access 4 | . . . . . . 1 . . . . . . . . . . . . . . . 3 . . . Phase Generator 1 | . . . . . . . . . . . . . . . . . . . . . . . . . 1 Network Hub 1 | . . . . . . . . . . . . . . . 1 . . . . . . . . . . Machines Repaired 2 | . . . . . . 2 . . . . . . . . . . . . . . . . . . . Machines Dismantled . | . . . . . . . . . . . . . . . . . . . . . . . . . . Machines Sabotaged . | . . . . . . . . . . . . . . . . . . . . . . . . . . Overloaded Fab Kills . | . . . . . . . . . . . . . . . . . . . . . . . . . . Hacking | -11 -10 -10 -8 -8 -8 -6 -6 -6 -6 -5 -5 -5 -5 -5 -5 -4 -4 -4 -4 -3 -3 -2 -2 -1 -1 --------- Run | Yrd Mat Sub Mat Sto Rec Fac Low Low Dat Pro Fac Ext Cet Arc Hub Fac Upp Upp War Pro Res Res Tes Acc Com Machines Accessed 117 | . 10 1 11 11 11 11 1 . 3 . 4 . 1 . 6 14 3 . 1 1 6 3 10 4 5 Terminals 79 | . 8 . 8 7 6 6 . . . . 2 . 1 . 6 11 . . . 1 6 2 9 2 4 Fabricators 2 | . . . . . . 2 . . . . . . . . . . . . . . . . . . . Repair Stations 7 | . 1 . . 2 . 1 . . . . 1 . . . . 2 . . . . . . . . . Recycling Units 13 | . 1 . 1 2 4 1 . . . . . . . . . 1 . . . . . . . 2 1 Scanalyzers 3 | . . . 2 . . . . . . . . . . . . . . . . . . . 1 . . Garrison Access 3 | . . . . . . 1 . . . . 1 . . . . . . . . . . 1 . . . Total Hacks 374 | . 21 1 36 43 36 18 3 . 29 . 14 . 1 . 12 53 9 . 1 1 18 11 44 11 12 Successful 206 | . 9 1 11 31 24 12 3 . 29 . 3 . . . 4 23 9 . 1 1 8 3 21 5 8 Failed 166 | . 12 . 24 12 11 6 . . . . 11 . 1 . 8 30 . . . . 10 8 23 6 4 Catastrophic 23 | . 1 . 1 . 1 3 . . . . 1 . . . 2 9 . . . . 1 . 2 1 1 Database Lockouts 2 | . . . 1 . 1 . . . . . . . . . . . . . . . . . . . . Manual 197 | . 18 . 28 8 21 9 . . . . 9 . 1 . 10 39 . . 1 . 17 3 23 4 6 Terminals 243 | . 18 . 29 15 23 9 . . . . 9 . 1 . 12 42 . . . 1 18 9 41 6 10 Fabricators 4 | . . . . . . 4 . . . . . . . . . . . . . . . . . . . Repair Stations 41 | . 2 . . 25 . 3 . . . . 2 . . . . 9 . . . . . . . . . Recycling Units 28 | . 1 . 3 3 11 1 . . . . . . . . . 2 . . . . . . . 5 2 Scanalyzers 7 | . . . 4 . . . . . . . . . . . . . . . . . . . 3 . . Garrison Access 6 | . . . . . . 1 . . . . 3 . . . . . . . . . . 2 . . . Terminal Hacks 85 | . . 1 3 6 9 . 3 . 29 . . . . . . 4 9 . 1 1 1 2 10 1 5 Record 21 | . . . . . 3 . 3 . 6 . . . . . . . 7 . . 1 . . . . 1 Part Schematic 13 | . . . . . . . . . 13 . . . . . . . . . . . . . . . . Robot Schematic 7 | . . . . . . . . . 7 . . . . . . . . . . . . . . . . Robot Analysis 2 | . . . . 1 1 . . . . . . . . . . . . . . . . . . . . Prototype ID Bank 8 | . . . 1 . 2 . . . 3 . . . . . . . . . . . . 1 1 . . Open Door 9 | . . . . 4 . . . . . . . . . . . . 2 . 1 . . . 1 . 1 Branch Access Points 3 | . . . 1 . . . . . . . . . . . . 1 . . . . . . 1 . . Terminal Index 1 | . . . . . . . . . . . . . . . . 1 . . . . . . . . . Garrison Index 1 | . . . . . . . . . . . . . . . . . . . . . . 1 . . . Alert Level 5 | . . . . . 1 . . . . . . . . . . . . . . . . . 2 . 2 Unreport Threat 7 | . . . . 1 . . . . . . . . . . . 2 . . . . . . 3 . 1 Locate Traps 3 | . . . 1 . . . . . . . . . . . . . . . . . . . 1 1 . Hauler Manifests 1 | . . . . . . . . . . . . . . . . . . . . . . . 1 . . Registered Components 1 | . . . . . . . . . . . . . . . . . . . . . 1 . . . . Proto ID Catalog 1 | . . 1 . . . . . . . . . . . . . . . . . . . . . . . Release Object 2 | . . . . . 2 . . . . . . . . . . . . . . . . . . . . Fabricator Hacks 3 | . . . . . . 3 . . . . . . . . . . . . . . . . . . . Network Status 2 | . . . . . . 2 . . . . . . . . . . . . . . . . . . . Build 1 | . . . . . . 1 . . . . . . . . . . . . . . . . . . . Repair Station Hacks 33 | . 1 . . 22 . 3 . . . . 1 . . . . 6 . . . . . . . . . Scan Component 17 | . . . . 11 . 2 . . . . 1 . . . . 3 . . . . . . . . . Repair 15 | . . . . 11 . 1 . . . . . . . . . 3 . . . . . . . . . Refit 1 | . 1 . . . . . . . . . . . . . . . . . . . . . . . . Recycling Unit Hacks 9 | . . . . 1 4 . . . . . . . . . . 1 . . . . . . . 2 1 Retrieve Components 9 | . . . . 1 4 . . . . . . . . . . 1 . . . . . . . 2 1 Scanalyzer 4 | . . . 1 . . . . . . . . . . . . . . . . . . . 3 . . Retrieve Study 4 | . . . 1 . . . . . . . . . . . . . . . . . . . 3 . . Garrison Access Hacks 2 | . . . . . . 1 . . . . . . . . . . . . . . . 1 . . . Seal Access 2 | . . . . . . 1 . . . . . . . . . . . . . . . 1 . . . Unauthorized Hacks 70 | . 8 . 7 2 11 5 . . . . 2 . . . 4 12 . . . . 7 . 8 2 2 Terminals 66 | . 8 . 7 2 7 5 . . . . 2 . . . 4 12 . . . . 7 . 8 2 2 Assimilate 3 | . . . . . . . . . . . . . . . . 2 . . . . . . . 1 . Botnet 23 | . 2 . 2 2 2 2 . . . . 1 . . . 2 3 . . . . 2 . 3 1 1 Operators 1 | . 1 . . . . . . . . . . . . . . . . . . . . . . . . Skim 39 | . 5 . 5 . 5 3 . . . . 1 . . . 2 7 . . . . 5 . 5 . 1 Fabricators . | . . . . . . . . . . . . . . . . . . . . . . . . . . Repair Stations . | . . . . . . . . . . . . . . . . . . . . . . . . . . Recycling Units 4 | . . . . . 4 . . . . . . . . . . . . . . . . . . . . Reject 2 | . . . . . 2 . . . . . . . . . . . . . . . . . . . . Tunnel 2 | . . . . . 2 . . . . . . . . . . . . . . . . . . . . Scanalyzers . | . . . . . . . . . . . . . . . . . . . . . . . . . . Garrison Access . | . . . . . . . . . . . . . . . . . . . . . . . . . . Data Cores Recovered 5 | . . . 2 . . . . . . . . . . . 1 . . . . . 1 . 1 . . Used 1 | . . . . . . . . . . . . . . . 1 . . . . . . . . . . Hacking Detections 88 | . 10 . 10 7 6 6 . . . . 4 . 2 . 6 12 . . . . 6 3 8 4 4 Full Trace Events 3 | . . . 1 . . . . . . . . . . . . . . . . . . 2 . . . Feedback Events . | . . . . . . . . . . . . . . . . . . . . . . . . . . Feedback Blocked . | . . . . . . . . . . . . . . . . . . . . . . . . . . Robot Schematics Acquired 55 | . . . . . . . . . 7 . . . . . . . . . . . . . 48 . . Robots Built 4 | . . . . . . 4 . . . . . . . . . . . . . . . . . . . Authchips . | . . . . . . . . . . . . . . . . . . . . . . . . . . Time 134 | . . . . . . 134 . . . . . . . . . . . . . . . . . . . Total Robot Build Rating 16 | . . . . . . 16 . . . . . . . . . . . . . . . . . . . Part Schematics Acquired 26 | . . . . . . . . . 13 . . . . . . . . . . . . . 13 . . Parts Built . | . . . . . . . . . . . . . . . . . . . . . . . . . . Authchips . | . . . . . . . . . . . . . . . . . . . . . . . . . . Time . | . . . . . . . . . . . . . . . . . . . . . . . . . . Total Part Build Rating . | . . . . . . . . . . . . . . . . . . . . . . . . . . Part Studies Acquired 4 | . . . 1 . . . . . . . . . . . . . . . . . . . 3 . . Parts Repaired 15 | . . . . 11 . 1 . . . . . . . . . 3 . . . . . . . . . Time 565 | . . . . 446 . 44 . . . . . . . . . 75 . . . . . . . . . Parts Recycled . | . . . . . . . . . . . . . . . . . . . . . . . . . . Recycled Matter . | . . . . . . . . . . . . . . . . . . . . . . . . . . Retrieved Matter . | . . . . . . . . . . . . . . . . . . . . . . . . . . Retrieved Components 22 | . . . . 3 5 . . . . . . . . . . 1 . . . . . . . 11 2 Parts Scanalyzed . | . . . . . . . . . . . . . . . . . . . . . . . . . . Part Schematics Acquired . | . . . . . . . . . . . . . . . . . . . . . . . . . . Parts Damaged . | . . . . . . . . . . . . . . . . . . . . . . . . . . Bothacking | -11 -10 -10 -8 -8 -8 -6 -6 -6 -6 -5 -5 -5 -5 -5 -5 -4 -4 -4 -4 -3 -3 -2 -2 -1 -1 ------------ Run | Yrd Mat Sub Mat Sto Rec Fac Low Low Dat Pro Fac Ext Cet Arc Hub Fac Upp Upp War Pro Res Res Tes Acc Com Used RIF Installer . | . . . . . . . . . . . . . . . . . . . . . . . . . . Robots Hacked 1 | . . . . . . . . . . . . . . . . . . . . . . . . . 1 Non-combat . | . . . . . . . . . . . . . . . . . . . . . . . . . . Combat . | . . . . . . . . . . . . . . . . . . . . . . . . . . Robot Hacks Applied . | . . . . . . . . . . . . . . . . . . . . . . . . . . Manual 1 | . . . . . . . . . . . . . . . . . . . . . . . . . 1 Relay Couplers Released 2 | . . . . . . . . . . . . . . . . . . . . . . 2 . . . Machine Destruction 2 | . . . . . . . . . . . . . . . . . . . . . . 2 . . . Fabnet Peak Effective % . | . . . . . . . . . . . . . . . . . . . . . . . . . . Robots Rewired 10 | . . . . . 1 . . . . . . 4 . . . . 2 2 . . . . 1 . . Allies Hacked 1 | . . . . . . . . . . . . . . . . . . . . . . . 1 . . Hacks Repelled . | . . . . . . . . . . . . . . . . . . . . . . . . . . Allies | -11 -10 -10 -8 -8 -8 -6 -6 -6 -6 -5 -5 -5 -5 -5 -5 -4 -4 -4 -4 -3 -3 -2 -2 -1 -1 -------- Run | Yrd Mat Sub Mat Sto Rec Fac Low Low Dat Pro Fac Ext Cet Arc Hub Fac Upp Upp War Pro Res Res Tes Acc Com Total Allies 31 | . . . . 2 1 4 . . . . . 12 5 . . 1 2 2 . . . . 1 1 . Largest Group 10 | . . . . 2 1 4 . . . . . 10 7 7 6 1 1 2 . . . . 1 1 . Highest-Rated Group 678 | . . . . 62 27 48 . . . . . 413 678 678 519 10 30 94 . . . . 152 45 . Highest-Rated Ally 159 | . . . . 31 27 27 . . . . . 159 159 159 96 10 30 47 . . . . 152 45 . Total Orders . | . . . . . . . . . . . . . . . . . . . . . . . . . . Ally Attacks 320 | . . . . 8 . 32 . . . . . 154 26 19 55 . . 7 . . . . 19 . . Total Damage 7433 | . . . . 126 . 317 . . . . . 3072 638 742 1449 . . 113 . . . . 976 . . Kills 41 | . . . . 1 . 1 . . . . . 20 3 2 12 . . 1 . . . . 1 . . Allies Corrupted 1 | . . . . . . . . . . . . . . . . 1 . . . . . . . . . Allies Melted 7 | . . . . . . 1 . . . . . . . . . . . . . . . 2 . . 4 Intel | -11 -10 -10 -8 -8 -8 -6 -6 -6 -6 -5 -5 -5 -5 -5 -5 -4 -4 -4 -4 -3 -3 -2 -2 -1 -1 ------- Run | Yrd Mat Sub Mat Sto Rec Fac Low Low Dat Pro Fac Ext Cet Arc Hub Fac Upp Upp War Pro Res Res Tes Acc Com Active Infowar (turns) 25789 | 22 1914 4027 3533 897 . . 1334 1426 . 818 602 953 . 1766 334 1457 2151 1321 532 . 327 140 . 1021 1214 Sensors 6621 | . . . . . . . 1334 1426 . 818 283 . . . . 651 . . . . . . . 897 1212 IFF 205 | . . . . . . . . . . . . . . . . . . . . . 65 140 . . . Zeronet 26 | . . . . . . . . . . . . . . . . . . . . . . . . 26 . Terrain 6924 | . . . 124 744 . . . . . . 223 . . . . 1070 2124 1321 526 . 58 . . 39 695 Seismic 17724 | 22 1914 4027 3533 153 . . . . . . 208 953 . 1766 334 642 2126 1321 516 . 209 . . . . Cloaking 5302 | . . . . . . . . . . . 111 622 . . . 576 2138 1321 532 . . . . . 2 Jamming 59 | . . . . . . . . . . . . . . . . . . . . . . . . 59 . Robot Analysis Total 102 | . . . . 1 1 . . . . . . . . . . . . . . . . . 100 . . Derelict Logs Recovered 8 | . . 2 . . . . 1 2 . 1 . . . . . . 1 1 . . . . . . . Drone Launches . | . . . . . . . . . . . . . . . . . . . . . . . . . . Drone Recoveries . | . . . . . . . . . . . . . . . . . . . . . . . . . . Exploration | -11 -10 -10 -8 -8 -8 -6 -6 -6 -6 -5 -5 -5 -5 -5 -5 -4 -4 -4 -4 -3 -3 -2 -2 -1 -1 ------------- Run | Yrd Mat Sub Mat Sto Rec Fac Low Low Dat Pro Fac Ext Cet Arc Hub Fac Upp Upp War Pro Res Res Tes Acc Com Turns Passed 47395 | 116 1916 4500 3677 2485 2651 1489 1536 1675 124 1309 1224 5171 465 2180 334 1600 2334 1321 768 484 782 1559 2923 1509 3263 Spaces Moved 21851 | 46 743 2101 1385 914 1070 827 761 1032 78 753 659 1255 216 230 228 932 1223 677 688 303 760 1247 1520 696 1507 Core 6 | 6 . . . . . . . . . . . . . . . . . . . . . . . . . Treads 14719 | 40 743 2101 1385 914 835 50 . . . . 3 322 216 230 228 882 1169 172 688 303 760 1185 734 375 1384 Legs 2529 | . . . . . . 287 6 . . . . 385 . . . . 54 505 . . . 62 786 321 123 Wheels 4597 | . . . . . 235 490 755 1032 78 753 656 548 . . . 50 . . . . . . . . . Hover . | . . . . . . . . . . . . . . . . . . . . . . . . . . Flight . | . . . . . . . . . . . . . . . . . . . . . . . . . . Fastest Speed 50 | 50 160 160 163 160 140 115 115 130 160 160 125 88 113 113 113 90 102 97 80 80 80 71 82 163 163 Average Speed 143 | 146 160 190 210 161 151 134 128 147 160 160 133 141 113 113 113 124 111 142 94 80 80 103 123 163 163 Slowest Speed 340 | 160 160 340 244 240 220 226 255 160 160 160 273 211 113 113 113 265 259 261 97 80 80 131 163 163 163 Overloaded Moves . | . . . . . . . . . . . . . . . . . . . . . . . . . . Propulsion Burnouts . | . . . . . . . . . . . . . . . . . . . . . . . . . . Robots Hopped . | . . . . . . . . . . . . . . . . . . . . . . . . . . Potential Cave-ins 27 | . . . . 3 . . . . . . 14 . . . . 5 . . . . . . . . 5 Cave-ins Triggered 4 | . . . . 2 . . . . . . 1 . . . . 1 . . . . . . . . . Exploration Rate (%) 62 | 3 98 97 77 95 97 23 77 97 69 82 18 70 67 82 22 31 95 79 86 46 29 28 84 19 58 Regions Visited 25 Branch Regions 17 Pre-discovered Areas 10 | . 1 1 2 1 3 . . . 1 . . . . . . 1 . . . . . . . . . Known Exits Taken 13 | . . . 1 . . 1 1 1 1 1 . 1 . . 1 1 . . . 1 1 . 1 1 . Unknown Exits Taken 12 | 1 1 1 . 1 1 . . . . . 1 . 1 1 . . 1 1 1 . . 1 . . . Scrap Searched 28 | . . 9 . . . . 3 3 . 2 . . . . . . 5 4 . 2 . . . . . Spaces Dug 374 | . 15 4 13 22 1 12 18 3 . 2 26 2 . . 8 27 114 59 4 . 10 10 5 17 2 Terrain Destroyed 1671 | . 17 6 57 24 1 77 51 3 . 17 161 264 1 5 199 176 158 94 9 . 14 19 59 148 111 Melee 83 | . . . 4 16 1 11 2 1 . . 9 . . . 3 14 3 4 3 . 6 5 . 1 . Projectile 391 | . 12 2 2 8 . 9 1 2 . 5 52 62 1 5 13 35 33 11 6 . 8 14 21 37 52 AOE 1196 | . 5 4 51 . . 57 48 . . 12 100 202 . . 183 127 122 79 . . . . 38 110 58 Terrain Rammed . | . . . . . . . . . . . . . . . . . . . . . . . . . . Walls Destroyed . | . . . . . . . . . . . . . . . . . . . . . . . . . . Machines Disabled . | . . . . . . . . . . . . . . . . . . . . . . . . . . Actions | -11 -10 -10 -8 -8 -8 -6 -6 -6 -6 -5 -5 -5 -5 -5 -5 -4 -4 -4 -4 -3 -3 -2 -2 -1 -1 --------- Run | Yrd Mat Sub Mat Sto Rec Fac Low Low Dat Pro Fac Ext Cet Arc Hub Fac Upp Upp War Pro Res Res Tes Acc Com Total 35939 | 77 1332 2378 1932 1762 2068 1122 1286 1150 77 818 935 4542 422 2132 290 1293 2129 1004 784 537 894 1484 2433 964 2094 Wait 11139 | 14 484 108 286 628 926 124 474 82 . 27 140 3048 160 1871 35 191 769 276 48 226 58 132 618 96 318 Move 21825 | 45 742 2100 1384 913 1069 826 760 1031 77 752 657 1254 215 229 228 930 1222 676 687 302 759 1246 1520 695 1506 Hop . | . . . . . . . . . . . . . . . . . . . . . . . . . . Pick Up 306 | 4 17 20 49 14 6 28 3 9 . . 14 25 8 4 4 33 4 . 6 1 5 10 17 9 16 Fast Attach 188 | 7 2 3 16 13 4 7 5 1 . . 8 5 1 1 . 11 2 . 8 . 9 15 39 6 25 Attach 128 | . 1 7 12 5 1 11 4 . . . 9 16 3 2 1 6 3 1 1 . 4 8 14 5 14 Detach 65 | . 2 . 7 . 3 4 3 . . 1 1 10 . 1 . 1 2 . 1 . 3 8 11 1 6 Swap 271 | . 11 21 27 29 2 11 4 2 . 9 10 16 4 . 1 22 17 . 4 1 7 3 6 41 23 Drop 389 | . 10 7 42 19 17 27 11 6 . 4 18 31 11 4 4 28 8 . 12 . 12 23 55 14 26 Fire 1258 | 7 63 112 103 108 14 32 7 3 . 6 62 98 20 5 14 54 59 22 13 7 24 32 145 96 152 Melee 261 | . . . 5 33 23 44 15 16 . 16 15 17 . 15 3 16 4 5 4 . 10 7 4 1 8 Ram . | . . . . . . . . . . . . . . . . . . . . . . . . . . Kick 1 | . . . . . . 1 . . . . . . . . . . . . . . . . . . . Crush 3 | . . . . . . . . . . . . . . . . . . . . . 3 . . . . Escape Stasis 2 | . . . . . . . . . . . 1 . . . . 1 . . . . . . . . . Rewire 92 | . . . . . 3 . . . . . . 22 . . . . 39 24 . . . . 4 . . Trap 4 | . . . 1 . . . . . . 3 . . . . . . . . . . . . . . . Miscellaneous 7 | . . . . . . 7 . . . . . . . . . . . . . . . . . . . Route ------- -11/Scrapyard -10/Materials (discovered 6 exits: [*Mat x3] / *Min x2 / *Sub) -10/Subcaves (discovered 2 exits: *Mat x2) -8/Materials (discovered 5 exits: *Fac x3 / *Sto x2) -8/Storage (discovered 2 exits: *Fac / *Rec) -8/Recycling -6/Factory (discovered 5 exits: Fac x3 / *Low x2) -6/Lower Caves -6/Lower Caves (discovered 2 exits: *Fac / *Dat) -6/Data Miner -5/Proximity Caves -5/Factory -5/Extension (discovered 3 exits: *Fac x2 / *Cet) -5/Cetus (discovered 2 exits: *Fac / [*Arc]) -5/Archives (discovered 3 exits: *Fac / *Hub x2) -5/Hub_04(d) -4/Factory (discovered 6 exits: *Res x4 / *Upp x2) -4/Upper Caves -4/Upper Caves (discovered 2 exits: *Res / *War) -4/Warlord -3/Proximity Caves -3/Research (discovered 4 exits: *Res x2 / *Arm / Qua) -2/Research (discovered 3 exits: Acc x2 / *Tes) -2/Testing (discovered 3 exits: *Acc / Sec / Frg) -1/Access -1/Command (discovered 2 exits: *Sur x2) To Epsilon Eridani History --------- Turn | Location | Event 5 | -11/Scrapyard | Discovered new exit (range 15) 117 | -11/Scrapyard | Entered Materials 308 | -10/Materials | Build established: Mutant 473 | -10/Materials | Discovered new exit (range 14) 625 | -10/Materials | Discovered new exit (range 3) 795 | -10/Materials | Discovered new exit (range 15) 1021 | -10/Materials | Discovered new exit (range 7) 1361 | -10/Materials | Discovered new exit (range 11) 1526 | -10/Materials | Learned Storage emergency access door positions 1655 | -10/Materials | Learned Storage interactive machine intel 1703 | -10/Materials | Learned Storage garrison access intel 1739 | -10/Materials | Identified exit to Mines 1765 | -10/Materials | Learned 4 Recycling zone layouts 1779 | -10/Materials | Learned Materials stockpile data 1803 | -10/Materials | Learned 2 Mines zone layouts 1879 | -10/Materials | Learned Materials stockpile data 2033 | -10/Materials | Entered Subcaves 2213 | -10/Subcaves | Learned location of Zion (-7) 2213 | -10/Subcaves | Met a Zionite searching for "candidates" 2568 | -10/Subcaves | Learned location of 1 exit from Materials 2672 | -10/Subcaves | Discovered new exit (range 15) 3266 | -10/Subcaves | A swath of the cavern ceiling suddenly collapsed 3707 | -10/Subcaves | Core integrity fell below 50% 3994 | -10/Subcaves | Discovered new exit (range 7) 4443 | -10/Subcaves | Visited 4L-MR0's lab 4533 | -10/Subcaves | Found Tower Shield 4535 | -10/Subcaves | Attached Tower Shield, gained temporary slots: Power, Propulsion x2, Utility x2, Weapon x2 4810 | -10/Subcaves | Build established: Gunner 4847 | -10/Subcaves | A swath of the cavern ceiling suddenly collapsed 5778 | -10/Subcaves | Learned Materials security intel 6417 | -10/Subcaves | Build established: Scavenger-Gunner 6533 | -10/Subcaves | Entered Materials 6533 | -8/Materials | Evolved 4 slots: Propulsion x1, Utility x2, Weapon x1 6534 | -8/Materials | Identified exit to Factory 6834 | -8/Materials | Build established: Scavenger-Tank 7503 | -8/Materials | Garrison activated, responded to threat 8467 | -8/Materials | Learned Storage trap positions 8493 | -8/Materials | Central database locked down 8575 | -8/Materials | Learned location of 1 exit from Extension 8613 | -8/Materials | Learned location of 2 exits from Factory 8643 | -8/Materials | Learned location of Lower Caves (-7) 8663 | -8/Materials | Learned location of 1 exit from Extension 8675 | -8/Materials | Identified exit to Storage 8695 | -8/Materials | Learned Factory emergency access door positions 9116 | -8/Materials | Discovered exit to Factory (range 13) 9885 | -8/Materials | Build established: Tank 10133 | -8/Materials | First assault squad dispatched 10210 | -8/Materials | Entered Storage 10211 | -8/Storage | Loaded intel: 26 trap records 10212 | -8/Storage | Loaded intel: 17 interactive machine locations 10581 | -8/Storage | Destroyed 7 combat bots 11080 | -8/Storage | Met a pair of Derelict thieves 11185 | -8/Storage | Destroyed 8 combat bots 11202 | -8/Storage | Discovered exit to Factory (range 16) 11476 | -8/Storage | Used back door to open Recycling access 11476 | -8/Storage | Discovered new exit (range 5) 11574 | -8/Storage | Learned location of Armory (-3) 11699 | -8/Storage | Crushed by falling debris 11707 | -8/Storage | Crushed by falling debris 11788 | -8/Storage | Repaired Remote Shield 11821 | -8/Storage | Repaired Imp. Treads 11855 | -8/Storage | Repaired Imp. Treads 12086 | -8/Storage | Repaired Coolant Injector 12125 | -8/Storage | Repaired Imp. Light Armor Plating 12159 | -8/Storage | Repaired Imp. Treads 12205 | -8/Storage | Repaired Gauss Rifle 12250 | -8/Storage | Repaired Gauss Rifle 12310 | -8/Storage | Repaired Enh. Autogun 12348 | -8/Storage | Repaired Multitool 12387 | -8/Storage | Repaired Hvy. Particle Cannon 12695 | -8/Storage | Entered Recycling 13008 | -8/Recycling | Build established: Hacker-Tank 13261 | -8/Recycling | Discovered new exit (range 6) 13412 | -8/Recycling | Learned 4 Factory zone layouts 13484 | -8/Recycling | Learned location of 1 exit from Recycling 13493 | -8/Recycling | Entered Scraplab 13496 | -8/Recycling | Found Prototype Device 13496 | -8/Recycling | Identified Scrap Engine 13507 | -8/Recycling | Learned 4 Factory zone layouts 13518 | -8/Recycling | Learned 8 Factory zone layouts 13519 | -8/Recycling | Learned Factory terminal intel 13579 | -8/Recycling | Learned Factory trap positions 13621 | -8/Recycling | Learned Factory emergency access door positions 13779 | -8/Recycling | Build established: Mutant 14445 | -8/Recycling | Build established: Construct 15346 | -8/Recycling | Entered Factory 15346 | -6/Factory | Accompanied by 1 ally 15346 | -6/Factory | Evolved 4 slots: Propulsion x1, Utility x1, Weapon x2 15347 | -6/Factory | Identified exit to Lower Caves 15348 | -6/Factory | Identified exit to Factory 15350 | -6/Factory | Loaded intel: 88 trap records 15352 | -6/Factory | Loaded intel: 26 terminal locations 15754 | -6/Factory | Build established: Tank 15964 | -6/Factory | Repaired Mak. System Restoration Module 16414 | -6/Factory | Fabricated S-27 Virus? 16547 | -6/Factory | P-60 Hacker assimilated allied Virus 5a 16754 | -6/Factory | Cargo convoy interrupted 16835 | -6/Factory | Entered Lower Caves 16836 | -6/Lower Caves | Identified exit to Lower Caves 17120 | -6/Lower Caves | Learned Research terminal intel 17149 | -6/Lower Caves | Build established: Mutant 17168 | -6/Lower Caves | Destroyed 3T-NWM(g) 17208 | -6/Lower Caves | Murdered 6 allies 17675 | -6/Lower Caves | Found Alien Artifact 17675 | -6/Lower Caves | Identified Core Expander 17675 | -6/Lower Caves | Installed Core Expander, added new Weapon slot 18058 | -6/Lower Caves | Learned Factory terminal intel 18371 | -6/Lower Caves | Entered another Lower Caves area 18389 | -6/Lower Caves | Discovered exit to Factory (range 14) 18393 | -6/Lower Caves | Encountered a Warlord checkpoint 18457 | -6/Lower Caves | Murdered 5 allies 18459 | -6/Lower Caves | Build established: Skirmisher 18535 | -6/Lower Caves | Learned Factory machine intel 18640 | -6/Lower Caves | Learned Factory stockpile data 19733 | -6/Lower Caves | Discovered new exit (range 4) 19758 | -6/Lower Caves | Build established: Construct 20045 | -6/Lower Caves | Identified exit to Data Miner 20046 | -6/Lower Caves | Entered Data Miner 20046 | -6/Data Miner | Discovered new exit (range 6) 20077 | -6/Data Miner | Met Data Miner 20109 | -6/Data Miner | Learned location of Section 7 (-2) 20109 | -6/Data Miner | Acquired the access code to Warlord's prototype stash 20133 | -6/Data Miner | Received God Mode back door access code from Data Miner 20168 | -6/Data Miner | Identified exit to Proximity Caves 20170 | -6/Data Miner | Entered Proximity Caves 20651 | -5/Proximity Caves | Attracted the attention of an 0b10 checkpoint 21291 | -5/Proximity Caves | Learned Factory non-interactive machine intel 21308 | -5/Proximity Caves | Discovered exit to Factory (range 7) 21455 | -5/Proximity Caves | Attracted the attention of an 0b10 outpost 21479 | -5/Proximity Caves | Entered Factory 21479 | -5/Factory | Evolved 2 slots: Propulsion x1, Utility x1 21482 | -5/Factory | Loaded intel: 294 machine locations 21483 | -5/Factory | Loaded intel: 238 non-interactive machine locations 21484 | -5/Factory | Loaded intel: 28 terminal locations 21495 | -5/Factory | Watched by a mysterious "MATRIX" hacker. 21520 | -5/Factory | Found Prototype Launcher 21520 | -5/Factory | Identified Smartbomb Launcher 21821 | -5/Factory | Build established: Executioner 22056 | -5/Factory | Garrison activated, responded to threat 22079 | -5/Factory | First assault squad dispatched 22387 | -5/Factory | Destroyed 7 combat bots 22399 | -5/Factory | Incoming assault squad redirected 22594 | -5/Factory | Build established: Construct 22631 | -5/Factory | Crushed by falling debris 22635 | -5/Factory | Discovered new exit (range 5) 22703 | -5/Factory | Entered Extension 22704 | -5/Extension | Identified exit to Cetus 22704 | -5/Extension | Identified exit to Factory 23203 | -5/Extension | Disrupted transfer network 23561 | -5/Extension | Build established: Derelict-Construct 24231 | -5/Extension | Build established: Scavenger-Construct 25310 | -5/Extension | Disrupted transfer network 25323 | -5/Extension | Rescued a captive Derelict 25358 | -5/Extension | Build established: Construct 26503 | -5/Extension | Build established: Scavenger-Construct 26940 | -5/Extension | Build established: Construct 27023 | -5/Extension | Rescued A7 27203 | -5/Extension | First assault squad dispatched 27298 | -5/Extension | Rescued a captive Derelict 27299 | -5/Extension | Rescued a captive Derelict 27311 | -5/Extension | Rescued a captive Derelict 27312 | -5/Extension | Rescued a captive Derelict 27345 | -5/Extension | Rescued a captive Derelict 27346 | -5/Extension | Rescued a captive Derelict 27657 | -5/Extension | Spotted B-75 Beast 27661 | -5/Extension | Lost 3 allies 27661 | -5/Extension | Destroyed B-75 Beast 27671 | -5/Extension | Spotted B-75 Beast 27680 | -5/Extension | Destroyed B-75 Beast 27728 | -5/Extension | Destroyed 12 combat bots 27820 | -5/Extension | High security lockdown imminent 27849 | -5/Extension | Destroyed 11 combat bots 27850 | -5/Extension | Discovered exit to Factory (range 16) 27874 | -5/Extension | Entered Cetus 27874 | -5/Cetus | Accompanied by 4 allies (A7) 27879 | -5/Cetus | Acquired a Cetus Manufacturing Module code from A7 27905 | -5/Cetus | Spotted Cetus Guard 27905 | -5/Cetus | Spotted Cetus Guard 27909 | -5/Cetus | Destroyed Cetus Guard 27909 | -5/Cetus | Spotted Cetus Guard 27909 | -5/Cetus | Spotted Cetus Guard 27912 | -5/Cetus | Destroyed Cetus Guard 27917 | -5/Cetus | Destroyed Cetus Guard 27921 | -5/Cetus | Destroyed Cetus Guard 28026 | -5/Cetus | Escorted A7 to Cetus Mainframe 28039 | -5/Cetus | Discovered new exit (range 16) 28059 | -5/Cetus | Spotted Cetus Guard 28059 | -5/Cetus | Spotted Cetus Guard 28062 | -5/Cetus | Spotted Cetus Guard 28062 | -5/Cetus | Spotted Cetus Guard 28063 | -5/Cetus | Allies destroyed Cetus Guard 28068 | -5/Cetus | Allies destroyed Cetus Guard 28069 | -5/Cetus | Destroyed Cetus Guard 28077 | -5/Cetus | Allies destroyed Cetus Guard 28089 | -5/Cetus | Discovered exit to Factory (range 15) 28095 | -5/Cetus | Met Revision 17 28169 | -5/Cetus | Started Cetus Manufacturing Module 28194 | -5/Cetus | Manufactured an Enhanced Grunt 28219 | -5/Cetus | Manufactured an Enhanced Grunt 28244 | -5/Cetus | Manufactured an Enhanced Grunt 28269 | -5/Cetus | Manufactured an Enhanced Grunt 28294 | -5/Cetus | Manufactured an Enhanced Grunt 28339 | -5/Cetus | Entered Archives 28339 | -5/Archives | Accompanied by 7 allies (A7) 28345 | -5/Archives | Received a hacking code to weaken MAIN.C 28423 | -5/Archives | Discovered new exit (range 16) 28435 | -5/Archives | Discovered exit to Factory (range 15) 28593 | -5/Archives | Build established: Commander-Construct 28626 | -5/Archives | Discovered new exit (range 16) 30519 | -5/Archives | Entered Hub_04(d) 30519 | -5/Hub_04(d) | Accompanied by 6 allies 30786 | -5/Hub_04(d) | Discovered exit to Factory (range 12) 30829 | -5/Hub_04(d) | Network Hub disabled 30853 | -5/Hub_04(d) | Entered Factory 30853 | -4/Factory | Evolved 2 slots: Power x1, Propulsion x1 30865 | -4/Factory | Discovered new exit (range 13) 30883 | -4/Factory | Lost 5 allies 30927 | -4/Factory | Identified exit to Research 31169 | -4/Factory | Identified exit to Upper Caves 31197 | -4/Factory | Repaired Hcp. Storage Unit 31218 | -4/Factory | Build established: Construct 31661 | -4/Factory | Discovered exit to Research (range 14) 31829 | -4/Factory | Crushed by falling debris 31892 | -4/Factory | Repaired Quantum Reactor 31921 | -4/Factory | Repaired Lrn. Missile Launcher 32235 | -4/Factory | Learned location of 1 exit from Quarantine 32269 | -4/Factory | Learned 4 Armory zone layouts 32292 | -4/Factory | Learned Research trap positions 32304 | -4/Factory | Destroyed 8 combat bots 32307 | -4/Factory | Learned 2 Proximity Caves zone layouts 32308 | -4/Factory | Learned Research garrison access intel 32323 | -4/Factory | Learned Quarantine non-interactive machine intel 32453 | -4/Factory | Entered Upper Caves 32596 | -4/Upper Caves | Attacked by a delusional Derelict stockpiling parts 32881 | -4/Upper Caves | Attracted the attention of an 0b10 checkpoint 33356 | -4/Upper Caves | Encountered a Warlord checkpoint 33642 | -4/Upper Caves | Entered an active Warlord outpost 33665 | -4/Upper Caves | Learned 4 Research zone layouts 33691 | -4/Upper Caves | Learned Research stockpile data 33691 | -4/Upper Caves | Learned Factory stockpile data 33691 | -4/Upper Caves | Learned Extension trap positions 33691 | -4/Upper Caves | Learned location of 1 exit from Factory 34077 | -4/Upper Caves | Attracted the attention of an 0b10 outpost 34546 | -4/Upper Caves | Discovered new exit (range 14) 34787 | -4/Upper Caves | Entered another Upper Caves area 34787 | -4/Upper Caves | Accompanied by 1 ally 34877 | -4/Upper Caves | Discovered exit to Research (range 10) 35201 | -4/Upper Caves | Attacked by a delusional Derelict stockpiling Unaware 35972 | -4/Upper Caves | Learned location of 2 exits from Research 36081 | -4/Upper Caves | Discovered new exit (range 12) 36108 | -4/Upper Caves | Entered Warlord 36388 | -4/Warlord | Visited the Vortex Lab 36402 | -4/Warlord | Warlord's base attacked by MAIN.C 36556 | -4/Warlord | Found Prototype Special Weapon 36556 | -4/Warlord | Identified RU-N14's Throwing Claymores v3 36559 | -4/Warlord | Found RU-N14's Throwing Claymores v3 36561 | -4/Warlord | Found RU-N14's Throwing Claymores v3 36606 | -4/Warlord | Opened Warlord's prototype stash 36625 | -4/Warlord | Found Prototype Device 36625 | -4/Warlord | Identified System Purifier 36634 | -4/Warlord | Found Prototype Processor 36634 | -4/Warlord | Identified Exp. Targeting Computer 36648 | -4/Warlord | Found Prototype Hackware 36706 | -4/Warlord | Met Warlord 36752 | -4/Warlord | Warlord forces counterattacked 36798 | -4/Warlord | Spotted Striker 36799 | -4/Warlord | Destroyed Striker 36810 | -4/Warlord | Spotted Striker 36815 | -4/Warlord | Spotted Executioner 36846 | -4/Warlord | Found Prototype Processor 36846 | -4/Warlord | Identified Exp. Core Analyzer 36867 | -4/Warlord | Lost 8 allies 36868 | -4/Warlord | Discovered new exit (range 12) 36876 | -4/Warlord | Entered Proximity Caves 37354 | -3/Proximity Caves | Discovered exit to Research (range 10) 37360 | -3/Proximity Caves | Entered Research 37360 | -3/Research | Evolved 2 slots: Utility x2 37361 | -3/Research | Identified exit to Quarantine 37361 | -3/Research | Identified exit to Research 37362 | -3/Research | Identified exit to Armory 37363 | -3/Research | Loaded intel: 91 trap records 37365 | -3/Research | Loaded intel: 25 terminal locations 37366 | -3/Research | Loaded intel: 4 garrison access locations 37367 | -3/Research | Identified System Mapper 37560 | -3/Research | Revision forces began assault on 0b10 37663 | -3/Research | Build established: Hacker-Construct 37688 | -3/Research | Met up with Revision 17++ 37836 | -3/Research | Loaded intel: 113 machine locations 37868 | -3/Research | Learned Access trap positions 37902 | -3/Research | Learned 4 Access zone layouts 37904 | -3/Research | Learned Access fabricator intel 37914 | -3/Research | Learned Access emergency access door positions 37933 | -3/Research | Learned location of 1 exit from Research 37968 | -3/Research | Spotted B-86 Titan 37977 | -3/Research | Destroyed B-86 Titan 38060 | -3/Research | Research terminal network offline 38142 | -3/Research | Entered another Research area 38142 | -2/Research | Warlord forces began assault on 0b10 38142 | -2/Research | Evolved 2 slots: Utility x2 38143 | -2/Research | Identified exit to Access 38252 | -2/Research | Research machine network offline 38324 | -2/Research | Spotted B-90 Cyclops 38334 | -2/Research | Spotted B-90 Cyclops 38343 | -2/Research | Destroyed B-90 Cyclops 38472 | -2/Research | Met up with Warlord 38496 | -2/Research | Discovered new exit (range 16) 38661 | -2/Research | Found Fusion Bomb Launcher 38683 | -2/Research | Borebot progress halted 38692 | -2/Research | Found Prototype Device 38692 | -2/Research | Identified Thermal Barrier 38965 | -2/Research | Lost 4 allies 39080 | -2/Research | Met DD-05H 39128 | -2/Research | Borebot progress halted 39259 | -2/Research | Found Prototype Device 39259 | -2/Research | Identified Adv. Kinecellerator 39358 | -2/Research | Spotted Executioner 39360 | -2/Research | Destroyed Executioner 39412 | -2/Research | Destroyed Executioner 39645 | -2/Research | Given Cave Seal Controls access code 39701 | -2/Research | Entered Testing 39713 | -2/Testing | Found Prototype Processor 39713 | -2/Testing | Identified Spectral Analyzer 39719 | -2/Testing | Found Prototype Processor 39719 | -2/Testing | Identified Exp. Terrain Scan Processor 39776 | -2/Testing | Found Prototype Energy Cannon 39776 | -2/Testing | Identified Imp. Potential Cannon 39851 | -2/Testing | Rewired PH-GI02H6NODN 39885 | -2/Testing | Discovered exit to Access (range 14) 39890 | -2/Testing | Unchained authorized (CL-0N3) 39924 | -2/Testing | Spotted Alpha 7 39933 | -2/Testing | Destroyed Alpha 7 39956 | -2/Testing | Spotted J7-DW8(H) 39975 | -2/Testing | Destroyed J7-DW8(H) 39987 | -2/Testing | Found Prototype Processor 39987 | -2/Testing | Identified Exp. Melee Analysis Suite 40054 | -2/Testing | K-01 Serf reconstituted as V2 40054 | -2/Testing | Spotted V2 40070 | -2/Testing | Destroyed V2 40070 | -2/Testing | V2 reconstituted as CL-0N3 40250 | -2/Testing | K-01 Serf reconstituted as Combat Programmer 40252 | -2/Testing | Destroyed Combat Programmer 40252 | -2/Testing | Combat Programmer reconstituted as CL-0N3 40322 | -2/Testing | Found Prototype Hackware 40322 | -2/Testing | Identified Ghost Barrier 40372 | -2/Testing | Spotted Striker 40373 | -2/Testing | Spotted Striker 40490 | -2/Testing | P-80 Master reconstituted as Access Guard 40497 | -2/Testing | Spotted Access Guard 40503 | -2/Testing | Destroyed Access Guard 40503 | -2/Testing | Access Guard reconstituted as CL-0N3 40567 | -2/Testing | Found Prototype Energy Cannon 40567 | -2/Testing | Identified Hpw. Disruptor Cannon 40806 | -2/Testing | K-01 Serf reconstituted as S7 Guard 40807 | -2/Testing | Spotted S7 Guard 40825 | -2/Testing | Destroyed S7 Guard 40825 | -2/Testing | S7 Guard reconstituted as CL-0N3 40827 | -2/Testing | Destroyed CL-0N3 40841 | -2/Testing | Extracted schematics, analyses from CL-0N3's data core 40849 | -2/Testing | Found Prototype Processor 41260 | -2/Testing | Found Prototype Device 41260 | -2/Testing | Identified AEGIS Remote Shield 41358 | -2/Testing | Identified exit to Section 7 41358 | -2/Testing | Identified exit to Protoforge 41390 | -2/Testing | Learned 4 Research zone layouts 41411 | -2/Testing | Learned Access trap positions 41421 | -2/Testing | Scanned by Researcher 41424 | -2/Testing | Learned Access emergency access door positions 41426 | -2/Testing | Learned Research emergency access door positions 41435 | -2/Testing | Found Prototype Protection 41435 | -2/Testing | Identified Med. Regenerative Plating 41438 | -2/Testing | Learned location of 1 exit from Research 41486 | -2/Testing | Found Prototype Protection 41522 | -2/Testing | Spotted PP-0R770D3I6W 41541 | -2/Testing | Destroyed PP-0R770D3I6W 41583 | -2/Testing | Destroyed 10 combat bots 41737 | -2/Testing | Found Prototype Device 41737 | -2/Testing | Identified 2N-1CE's Frost Array 41909 | -2/Testing | Identified SHELL Armor 42012 | -2/Testing | Found Prototype Launcher 42013 | -2/Testing | Identified Point Singularity Launcher 42624 | -2/Testing | Entered Access 42624 | -1/Access | Evolved 2 slots: Utility x2 42626 | -1/Access | Loaded intel: 75 trap records 42626 | -1/Access | Identified Zeronet Interface 42628 | -1/Access | Loaded intel: 4 fabricator locations 42731 | -1/Access | Found Prototype Processor 42731 | -1/Access | Identified Exp. Target Analyzer 42927 | -1/Access | Found Quantum Capacitor 43811 | -1/Access | Destroyed 11 combat bots 43874 | -1/Access | First assault squad dispatched 43879 | -1/Access | Found Prototype Protection 43879 | -1/Access | Identified Centrium Heavy Armor Plating 44124 | -1/Access | Discovered new exit (range 5) 44131 | -1/Access | Identified exit to Command 44133 | -1/Access | Entered Command 44256 | -1/Command | Targeted by mysterious "MATRIX" hacker. 44383 | -1/Command | First assault squad dispatched 44582 | -1/Command | Phase Generator disabled 44904 | -1/Command | Build established: Construct 44991 | -1/Command | Disengaged cave seal 44991 | -1/Command | Derelicts emerged from the dark tunnel 44991 | -1/Command | Welcomed Warlord to Command 45184 | -1/Command | Spotted Alpha 7 45184 | -1/Command | Spotted Striker 45184 | -1/Command | Spotted Alpha 7 45184 | -1/Command | Spotted Striker 45260 | -1/Command | Spotted Executioner 45264 | -1/Command | Spotted Executioner 45264 | -1/Command | Spotted Executioner 45264 | -1/Command | Spotted Executioner 45264 | -1/Command | Spotted B-99 Colossus 45278 | -1/Command | Spotted B-99 Colossus 45281 | -1/Command | Destroyed Executioner 45301 | -1/Command | Destroyed B-99 Colossus 45311 | -1/Command | Discovered new exit (range 15) 45314 | -1/Command | Found Exp. Core Analyzer 45320 | -1/Command | Lost 17 allies 45648 | -1/Command | Lost 5 allies 46128 | -1/Command | Lost 3 allies 46228 | -1/Command | Destroyed 8 combat bots 46241 | -1/Command | Disengaged cave seal 46241 | -1/Command | Derelicts emerged from the dark tunnel 46399 | -1/Command | Warlord commented on Warlord statues 46407 | -1/Command | Spotted Combat Programmer 46408 | -1/Command | Destroyed Combat Programmer 46409 | -1/Command | Spotted Combat Programmer 46412 | -1/Command | Destroyed Combat Programmer 46412 | -1/Command | Spotted M Guard 46414 | -1/Command | Warlord destroyed during the assault 46421 | -1/Command | Spotted M Guard 46427 | -1/Command | Destroyed M Guard 46429 | -1/Command | Destroyed M Guard 46429 | -1/Command | All MAIN.C guards destroyed 46457 | -1/Command | Lost 8 allies 46544 | -1/Command | Lost 4 allies 46552 | -1/Command | Met MAIN.C 46552 | -1/Command | Hacked MAIN.C using A7's code 46557 | -1/Command | Destroyed MAIN.C Shell 46557 | -1/Command | 0b10 Conduit disabled 46559 | -1/Command | Surrendered to MAIN.C 46559 | -1/Command | Loaded intel: 57 machine locations 46559 | -1/Command | Loaded intel: 98 trap records 46559 | -1/Command | Identified exit to Surface 46559 | -1/Command | Discovered exit to Surface (range 92) 46559 | -1/Command | Discovered exit to Surface (range 48) 46717 | -1/Command | Found Prototype Device 46717 | -1/Command | Identified Exp. Phase Shifter 46726 | -1/Command | Found Prototype Device 46726 | -1/Command | Identified Exp. Cloaking Device 46745 | -1/Command | Found Prototype Processor 46745 | -1/Command | Identified Exp. Armor Integrity Analyzer 46749 | -1/Command | Found Prototype Device 46749 | -1/Command | Identified Exp. System Purifier 46761 | -1/Command | Found Prototype Ballistic Gun 46761 | -1/Command | Identified Hyp. Multirail 46778 | -1/Command | Found Thermal Barrier 46782 | -1/Command | Found Exp. Core Analyzer 46819 | -1/Command | MAIN.C activated Command garrisons 46857 | -1/Command | Unknown forces attacked Command 46857 | -1/Command | Spotted EQ-006 46858 | -1/Command | Spotted EQ-000 46860 | -1/Command | Spotted EQ-001 46862 | -1/Command | Spotted EQ-003 46870 | -1/Command | Destroyed EQ-003 46876 | -1/Command | Spotted EQ-004 46884 | -1/Command | Destroyed EQ-004 46887 | -1/Command | Destroyed EQ-006 46899 | -1/Command | Destroyed EQ-000 46903 | -1/Command | Spotted EQ-005 46934 | -1/Command | Lost 14 allies 46956 | -1/Command | Spotted EQ-021 46956 | -1/Command | Spotted EQ-020 46956 | -1/Command | Spotted EQ-019 46956 | -1/Command | Spotted EQ-022 46965 | -1/Command | Destroyed EQ-020 46997 | -1/Command | Spotted EQ-012 46999 | -1/Command | Spotted EQ-031 47000 | -1/Command | Spotted EQ-018 47003 | -1/Command | Destroyed EQ-012 47030 | -1/Command | Lost 17 allies 47061 | -1/Command | Spotted EQ-040 47061 | -1/Command | Spotted EQ-041 47061 | -1/Command | Spotted EQ-050 47061 | -1/Command | Spotted EQ-038 47071 | -1/Command | Spotted EQ-056 47126 | -1/Command | Found Exp. Core Analyzer 47142 | -1/Command | Lost 11 allies 47173 | -1/Command | Spotted EQ-060 47175 | -1/Command | Destroyed EQ-061 47177 | -1/Command | Spotted EQ-044 47179 | -1/Command | Spotted EQ-054 47181 | -1/Command | Destroyed EQ-060 47185 | -1/Command | Spotted EQ-069 47189 | -1/Command | Destroyed EQ-054 47201 | -1/Command | Destroyed EQ-044 47209 | -1/Command | Lost 5 allies 47215 | -1/Command | Found Exp. Core Analyzer 47231 | -1/Command | Spotted EQ-073 47233 | -1/Command | Spotted EQ-082 47237 | -1/Command | Destroyed EQ-073 47239 | -1/Command | Spotted EQ-047 47246 | -1/Command | Destroyed EQ-082 47249 | -1/Command | Destroyed EQ-047 47251 | -1/Command | Spotted EQ-070 47257 | -1/Command | Destroyed EQ-070 47263 | -1/Command | Lost 3 allies 47266 | -1/Command | Spotted EQ-065 47270 | -1/Command | Spotted EQ-043 47275 | -1/Command | Spotted EQ-087 47275 | -1/Command | Spotted EQ-084 47276 | -1/Command | Destroyed EQ-043 47276 | -1/Command | Spotted EQ-085 47278 | -1/Command | Spotted EQ-076 47280 | -1/Command | Destroyed EQ-084 47282 | -1/Command | Spotted EQ-091 47311 | -1/Command | Spotted EQ-071 47333 | -1/Command | Destroyed EQ-085 47342 | -1/Command | Destroyed EQ-065 47344 | -1/Command | Lost 3 parts (3w) 47362 | -1/Command | Core integrity fell below 50% 47365 | -1/Command | Destroyed EQ-091 47396 | *** | Escaped! Last Messages --------------- 47377_ Knocked back. 47379_ Acquired Proton Burst Cannon. 47383_ Acquired 3 matter. 47383_ Acquired 7 matter. 47383_ Dropped Exp. Energy Well. 47384_ Acquired 2 matter. 47384_ Acquired 10 matter. 47384_ Extracted 550 energy. 47385_ Extracted 43 energy. 47386_ Acquired 12 matter. 47386_ Extracted 7 energy. 47389_ Acquired 2 matter. 47389_ Acquired 10 matter. 47391_ Quantum Reactor destroyed. 47393_ Acquired 12 matter. 47393_ Hpw. KE Graviton Construct/C destroyed. 47393_ Hpw. KE Graviton Construct/C core remains intact and functional. 47395_ Knocked back. [Achievement: Force of Scrap] Map ----- +----------------------------------------------------+ | ## ########### #?# #???????????#?# | | # # # #?# ###?????????#?# %% | | # " # | # ### ##"####?????#?# | | / "T # "" # ###### # #?????#?# | | # # """ # #?????#?# | | # # "T + ^ #?????#?# | | ### ###[ """ # ^ ^ % ###???#?# | | ### #?# "" # ^^!! #???#?# %% | | + #?# # !!!! ^!! ! = " ###?#?# %* | | ### #?# # !! =%% %! %=*]]" #?#?#" | | ##?# #?#####+#### ! [% %*%%[[!%=! #?#?#| = | | ???# #?????# #??# !!!=!]*=!!*###?#!!= | | ??##+#######+#??# !%==%!!%== #?#==![ | | ??# ######+####" [%%%%![==*####=%[! | | ??# ## " [*%!]=!===%%]=%!%%! | | ??# ## # [[%[[%!![%!%[%[!!! | | ??# ## # %!%!![[%=%!%%[=[*% | | ### ## ]! # ==*!%!!!%#"##!% | | ## ## !! + ##"###" [%!"=!!*## # % | | ## ## ###?????# $!" ! ##?#!!%= | | ## ## #???????# %"######?## ## | | ## ## #???????# %#????#??# ? | | ## ############???????# ##????####### | | ## #?????????######?### % #???????????? | | ## #?????????# Q#%##" ##??????????? | | ## #?????????# @ Q;## " %#??????????? | | ## #?????????#!! !%# # % ##??????????? | | ## #?????????###Q ##### #???????????? | | ####/###################% #???# "##???????????? | | #???# # #???????????? | | #???# ###???????????? | | ### #???# #?????????????? | | ##### #???#]]######????????? | | + #???# =## #????????? | | # ##############+## #???#!*## #????????? | | # #?# ## #???#]*## #????????? | | + #?# ## #???# ## #????????? | | # #?# ! ## #???# ## #????????? | | # ### ## ##??# ## #????????? | | ##### + # #?## ## #????????? | | ##### # # "" #?# ##+########### | | # # "" # T" #?# " # | | + + """" # #?# "T T# | | # ##### """" ## ##?# ######### ## | | ##### #???# "" ## #??######????#### ## | | ##### #???# ## #????????????# # | | ^ #???# ## #????????????#] =# | | ^ #???############### #????????????# ! =# | | ^ #???????????#######+#######???????# ! =# | | ^ #???????????# #???????######### | +----------------------------------------------------+ Best States ------------- Heat Dissipation 152 Coolant Potential 100 Energy Generation 57 Energy Capacity 1236 Matter Stores 700 Matter Capacity 700 Sight Range 16 Robot Scan Range 18 Terrain Scan Range 24 Terrain Scan Density 1010 Jamming Range 16 Cloak Strength 3 Power Amplification 20 Base Temperature (-) 150 Corruption Containment 12 Corruption Block 17 Armor Coverage 2800 Resistance: TH 10 Evasion (%) 58 Targeting Accuracy 12 Core Analysis 12 Recoil Reduction 6 Kinecelleration 50 Offensive Hacking 34 Defensive Hacking 20 Item Schematics ----------------- Combat Drone Bay | -6/Data Miner | Free Lgt. Regenerative Plating | -6/Data Miner | Free Cld. Gravmag System | -6/Data Miner | Free Imp. Matter Compressor | -6/Data Miner | Free Enh. Coil Gun | -6/Data Miner | Free Imp. Antigrav System | -6/Data Miner | Free Adv. Cryofiber Web | -6/Data Miner | Free Railgun | -6/Data Miner | Free Adv. Cooling System | -6/Data Miner | Free Field Propulsion Array | -6/Data Miner | Free HERF Cannon | -6/Data Miner | Free Hyp. Railgun | -6/Data Miner | Free Cmb. Antigrav System | -6/Data Miner | Free Exp. Optical Array | -2/Testing | Archive Imp. Lightning Gun | -2/Testing | Archive Graviton Cannon | -2/Testing | Archive Cld. Nuclear Pulse Thruster | -2/Testing | Archive Diametric Drive | -2/Testing | Archive Hvy. Wave Gun | -2/Testing | Archive Exp. Gyrokinetic Inverter | -2/Testing | Archive Exp. ECM Suite | -2/Testing | Archive Exp. Cooling System | -2/Testing | Archive Quantum Shading Machine | -2/Testing | Archive Adv. Plasma Rifle | -2/Testing | Archive Prc. Matter Filter | -2/Testing | Archive Imp. Q-thruster | -2/Testing | Archive Robot Schematics ------------------ M-22 Extractor | -6/Data Miner | Free L-41 Fighter | -6/Data Miner | Free E-15 Imp | -6/Data Miner | Free G-50 Soldier | -6/Data Miner | Free R-10 Processor | -6/Data Miner | Free L-61 Swordsman | -6/Data Miner | Free B-60 Warrior | -6/Data Miner | Free T-07 Excavator | -2/Testing | Archive K-01 Serf | -2/Testing | Archive A-02 Transporter | -2/Testing | Archive A-15 Conveyor | -2/Testing | Archive R-06 Scavenger | -2/Testing | Archive M-14 Sweeper | -2/Testing | Archive M-30 Cleanser | -2/Testing | Archive M-13 Machinist | -2/Testing | Archive M-28 Smith | -2/Testing | Archive M-36 Artificer | -2/Testing | Archive O-16 Technician | -2/Testing | Archive O-24 Administrator | -2/Testing | Archive O-32 Director | -2/Testing | Archive W-16 Scout | -2/Testing | Archive W-25 Informer | -2/Testing | Archive W-44 Eye | -2/Testing | Archive S-10 Pest | -2/Testing | Archive S-27 Virus | -2/Testing | Archive S-43 Plague | -2/Testing | Archive G-34 Mercenary | -2/Testing | Archive G-47 Trooper | -2/Testing | Archive G-67 Veteran | -2/Testing | Archive G-73 Enforcer | -2/Testing | Archive B-36 Bruiser | -2/Testing | Archive B-48 Gladiator | -2/Testing | Archive B-74 Champion | -2/Testing | Archive L-31 Rogue | -2/Testing | Archive Y-45 Defender | -2/Testing | Archive Y-54 Guardian | -2/Testing | Archive Y-64 Sentinel | -2/Testing | Archive Y-72 Warden | -2/Testing | Archive D-53 Grenadier | -2/Testing | Archive D-63 Destroyer | -2/Testing | Archive D-83 Annihilator | -2/Testing | Archive X-57 Shotgunner | -2/Testing | Archive X-62 Marksman | -2/Testing | Archive X-67 Chaingunner | -2/Testing | Archive X-72 Disruptor | -2/Testing | Archive X-77 Beamer | -2/Testing | Archive X-82 Rainmaker | -2/Testing | Archive X-87 Electro | -2/Testing | Archive H-55 Commando | -2/Testing | Archive H-66 Slayer | -2/Testing | Archive H-77 Assassin | -2/Testing | Archive H-88 Terminator | -2/Testing | Archive P-60 Hacker | -2/Testing | Archive P-70 Sage | -2/Testing | Archive P-80 Master | -2/Testing | Archive Fabricated ------------ S-27 Virus | x4 | -6/Factory | Preloaded Repaired ---------- Remote Shield | 6% | -8/Storage Imp. Treads | 9% | -8/Storage Imp. Treads | 25% | -8/Storage Coolant Injector | 57% | -8/Storage Imp. Light Armor Plating | 72% | -8/Storage Imp. Treads | 72% | -8/Storage Gauss Rifle | 80% | -8/Storage Gauss Rifle | 87% | -8/Storage Enh. Autogun | 75% | -8/Storage Multitool | 83% | -8/Storage Hvy. Particle Cannon | 66% | -8/Storage Mak. System Restoration Module | 71% | -6/Factory Hcp. Storage Unit | 38% | -4/Factory Quantum Reactor | 45% | -4/Factory Lrn. Missile Launcher | 6% | -4/Factory Studied --------- Mni. Grenade Launcher | -8/Materials | Hacked Micro-nuke Launcher | -2/Testing | Hacked Fusion Bomb Launcher | -2/Testing | Hacked Adv. Remote Datajack | -2/Testing | Hacked Alien Tech Used ----------------- Core Expander Achievements -------------- Anti-science Crusade Force of Scrap Stay Cool Under Fire Challenges ------------ None Game ------ Seed FactoryDefenseSpiker Manual? 0 Play Time 08:10:10 Cumulative 440.5 hours Start 2026.02.28 @ 23:50:33 End 2026.03.01 @ 08:52:31 Sessions 1 Manual Loads 0 Difficulty Rogue Special Mode None Game No. 343 Rogue 343 Adventurer 0 Explorer 0 Win Type 0 Total 6 Types 4/0/0/0/0/0/0/2/0/0 Lore% 70 Gallery% 71 Achievement% 57 Wizard Run 0 Options --------- Layout 1 ASCII 0 Keyboard 0 Movement Mouse Keybinds 0 Fullscreen 1 Font 32/SmallcapsGlow Map View 50x35 Zoom Use 0% Tactical HUD 1 Map Filters NONE Filters NONE Steam 1 RUN: 30c5495c-e3cf-4bac-b71f-5cafaacb9827